{"text_format":"1","workbook":"xlsx","n_sheets":3,"sheets":["FUID 2010","FUID 2018","BD2"],"not_rendered":{"charts":0,"images":3,"macros":1,"external_links":1,"defined_names":10,"comments":1,"pivot_tables":0},"unopened":[],"bounds":{"document_bytes":16777216,"sheet_cells":100000,"rows_first":2000,"rows_last":500,"rows_between":2000,"halvings":0,"cell_chars":16384,"cell_head_chars":4096},"cells_cut":0,"cells_raw":0,"read":"whole","date_system":"1900"}

{"sheet":"FUID 2010","index":0,"n_rows":572,"n_cols":32,"rows_kept":572,"cut":false,"hidden":false,"merged":[[571,0,572,21],[5,21,7,21],[6,8,6,10],[6,11,6,13],[6,15,7,15],[6,16,7,16],[6,17,7,17],[6,18,7,18],[5,7,7,7],[5,8,5,13],[5,14,7,14],[5,15,5,18],[5,19,7,19],[5,20,7,20],[4,0,4,6],[4,7,4,16],[4,17,4,21],[5,0,7,0],[5,1,7,1],[5,2,7,2],[5,3,7,3],[5,4,7,4],[5,5,7,5],[5,6,7,6],[0,0,0,1],[0,2,0,21],[1,0,1,21],[2,0,2,21],[3,0,3,6],[3,7,3,16],[3,17,3,21]]}
[null,null,"FORMATO ÚNICO DE INVENTARIO DOCUMENTAL - FUID"]
["DIVISIÓN DE GESTIÓN DOCUMENTAL"]
[]
["Unidad  académica o administrativa",null,null,null,null,null,null,"Dependencia",null,null,null,null,null,null,null,null,null,"Archivo de gestión"]
["SECRETARIA GENERAL",null,null,null,null,null,null,"DIVISION DE GESTIÓN DOCUMENTAL"]
["No. consecutivo","Centro de costos","Código de  serie ","Nombre de la serie","Código de  subserie ","Nombre de la subserie ","Nombre del expediente","Código expediente","Fechas extremas",null,null,null,null,null,"Número de paginas","Unidad de conservación",null,null,null,"Soporte","Ubicación física","Observaciones"]
[null,null,null,null,null,null,null,null,"Fecha Inicial ",null,null,"Fecha final",null,null,null,"Carpeta","Tomo","Otro","Estado"]
[null,null,null,null,null,null,null,null,"D","M","A","D","M","A"]
[1,21340005,{"$f":"IFERROR(VLOOKUP(D9,CodSerie2010,2,FALSE),\"\")","v":"08"},"CONTRATOS",{"$f":"IFERROR(VLOOKUP(F9,CodSubserie2010,2,FALSE),\"\")","v":"15"},"08-15   CONTRATOS INTERADMINISTRATIVOS","Contrato interadministrativo No. 0070 – 2013 Fondo Nacional de financiamiento para la ciencia, la tecnología y la innovación Francisco José de Caldas","COL 13-1-12","3","Julio","2012","28","Junio","2017",140,"x",null,null,"Inactivo / Transferencia","Físico"]
[2,21340005,"08","CONTRATOS","15","08-15   CONTRATOS INTERADMINISTRATIVOS","Contrato interadministrativo No. 0199 – 2013 Fondo Nacional de financiamiento para la ciencia, la tecnología y la innovación Francisco José de Caldas","COL 13-1-09","19","Julio","2012","7","Marzo","2017",111,"x",null,null,"Inactivo / Transferencia","Físico"]
[3,21340005,"08","CONTRATOS","15","08-15   CONTRATOS INTERADMINISTRATIVOS","Contrato interadministrativo No. 0176 – 2013 Fondo Nacional de financiamiento para la ciencia, la tecnología y la innovación Francisco José de Caldas","COL 13-1-11","19","Julio","2012","18","Noviembre","2016",124,"x",null,null,"Inactivo / Transferencia","Físico"]
[5,21340005,"09","CONVENIOS","07","09-07   CONVENIOS INTERADMINISTRATIVOS","Convenio interadministrativo -la universitat autónoma de Barcelona (UAB) ","COL13-1-05","3","Marzo","2016","3","Marzo","2016",4,null,null,null,"Inactivo / Transferencia","Físico y electrónico"]
[6,21340005,"08","CONTRATOS","15","08-15   CONTRATOS INTERADMINISTRATIVOS","Contrato interadministrativo No. 0589 – 2013 Fondo Nacional de financiamiento para la ciencia, la tecnología y la innovación Francisco José de Caldas","COL13-2-20","12","Junio","2013","30","Mayo","2017",175,"x",null,null,"Inactivo / Transferencia","Físico"]
[7,21340005,"09","CONVENIOS","07","09-07   CONVENIOS INTERADMINISTRATIVOS","convenio interadministrativo 226 de 2014 unidad de planeación energética ","COL13-2-21","","","","","","",5,"x",null,null,"Inactivo / Transferencia","Físico"]
[8,21340005,"08","CONTRATOS","15","08-15   CONTRATOS INTERADMINISTRATIVOS","Contrato interadministrativo No. 0068 – 2013 Fondo Nacional de financiamiento para la ciencia, la tecnología y la innovación Francisco José de Caldas","COL13-1-13","19","Julio","2012","4","Noviembre","2016",137,"x",null,null,"Inactivo / Transferencia","Físico"]
[9,21340005,"08","CONTRATOS",null,"08-15   CONTRATOS INTERADMINISTRATIVOS","Contrato interadministrativo No. 0975 – 2012 Fondo Nacional de financiamiento para la ciencia, la tecnología y la innovación Francisco José de Caldas","COL13-1-08","6","Diciembre","2012","11","Mayo","2017",135,"x",null,null,"Inactivo / Transferencia","Físico y electrónico"]
[10,21340005,"08","CONTRATOS",null,"08-15   CONTRATOS INTERADMINISTRATIVOS","Contrato interadministrativo No. 0200 – 2013 Fondo Nacional de financiamiento para la ciencia, la tecnología y la innovación Francisco José de Caldas","COL13-1-14","1","Marzo","2012","13","Abril","2016",128,"x",null,null,"Inactivo / Transferencia","Físico"]
[11,21340005,"08","CONTRATOS",null,"08-15   CONTRATOS INTERADMINISTRATIVOS","Contrato interadministrativo No. 0940 – 2012 Fondo Nacional de financiamiento para la ciencia, la tecnología y la innovación Francisco José de Caldas","COL13-1-04","23","Mayo","2012","8","Agosto","2017",102,"x",null,null,"Inactivo / Transferencia","Físico"]
[13,21340005,"08","CONTRATOS",null,"08-07   CONTRATOS DE FINANCIACIÓN ","Contrato de financiación No. 458 – 2009 Colciencias ","COL09-1-02","2","Octubre","2009","12","Diciembre","2016",87,"x",null,null,"Inactivo / Transferencia","Físico"]
[14,21340005,"08","CONTRATOS",null,"08-15   CONTRATOS INTERADMINISTRATIVOS","Contrato interadministrativo No. 0283 – 2014 Fondo Nacional de financiamiento para la ciencia, la tecnología y la innovación Francisco José de Caldas","COL14-2-03","21","Agosto","2014","9","Noviembre","2016",79,null,null,null,"Inactivo / Transferencia","Físico"]
[15,21340005,"08","CONTRATOS",null,"08-15   CONTRATOS INTERADMINISTRATIVOS","Contrato interadministrativo No. 0653 – 2013 Fondo Nacional de financiamiento para la ciencia, la tecnología y la innovación Francisco José de Caldas","COL14-1-01","2","Noviembre","2013","13","Mayo","2016",154,"x",null,null,"Inactivo / Transferencia","Físico"]
[16,21340005,"08","CONTRATOS",null,"08-15   CONTRATOS INTERADMINISTRATIVOS","Contrato interadministrativo No. 674 – 2011 Fondo Nacional de financiamiento para la ciencia, la tecnología y la innovación Francisco José de Caldas","COL10-2-06","6","Octubre","2011","13","Abril","2016",89,"x",null,null,"Inactivo / Transferencia","Físico"]
[17,21340005,"22","PROYECTOS",null,"22-03   PROYECTOS DE INVESTIGACIÓN","Diseño e imlpementación de una plataforma de software y hardware para la adquisición y procesamiento de señales biomédicas","FIT06-1-03","10","Noviembre","2006","18","Enero ","2017",100,"x",null,null,"Inactivo / Transferencia","Físico"]
[19,21340005,"22","PROYECTOS",null,"22-03   PROYECTOS DE INVESTIGACIÓN","Distribución del amonio en aguas y sedimentos superficiales en la cienaga de Ayapel, Cordoba.","FPPI08-1-05","3","Octubre","2008","9","Marzo","2017",81,"x",null,null,"Inactivo / Transferencia","Físico"]
[20,21340005,"08","CONTRATOS",null,"08-15   CONTRATOS INTERADMINISTRATIVOS","Contrato interadministrativo No. 008 – 2016 contraloría municipal de Bello","EDNOF16-467","18","Mayo","2016","16","Junio","2017",17,"x",null,null,"Inactivo / Transferencia","Físico"]
[21,21340005,"09","CONVENIOS",null,"09-07   CONVENIOS INTERADMINISTRATIVOS","convenio de cooperación 21302403-011-2016 con mantonline S.A.S. ","EDNOF16-471","27","Mayo","2016","27","Febrero","2017",11,"x",null,null,"Inactivo / Transferencia","Físico"]
[24,21340005,"08","CONTRATOS",null,"08-15   CONTRATOS INTERADMINISTRATIVOS","Contrato de prestación de servicios No. 21302403-010-2016 INGELÉCTRICA S.A.S.","EDNOF16-463","6","Mayo","2016","27","Febrero","2017",7,"x",null,null,"Inactivo / Transferencia","Físico"]
[32,21340005,"09","CONVENIOS",null,"09-08   CONVENIOS MARCO ","convenio de cooperación 21340003-034-2017 TRONEX S.A.S",null,"23","Noviembre","2017","23","Noviembre","2017",6,"x",null,null,"Inactivo / Transferencia","Físico"]
[34,21340005,"09","CONVENIOS",null,"09-07   CONVENIOS INTERADMINISTRATIVOS","Acuerdo de cooperación No. 78 de 2015 institución universitaria de Envigado",null,"12","Noviembre","2015","12","Noviembre","2015",5,"x",null,null,"Inactivo / Transferencia","Físico"]
[35,21340005,"09","CONVENIOS",null,"09-07   CONVENIOS INTERADMINISTRATIVOS","Convenio especifico de cooperación No. 078 de 2015 la institución universitaria de Envigado ",null,"2","Octubre","2017","2","Octubre","2017",4,"x",null,null,"Inactivo / Transferencia","Físico"]
[36,21340005,"22","PROYECTOS",null,"22-01   PROYECTOS DE EXTENSIÓN","Fortalecimineto de las capacidades del servicio de extensión en el área fotovoltaica de la faucltad de ingeniería","EDNOF15-408","4","Agosto","2015","18","Julio","2017",27,"x",null,null,"Inactivo / Transferencia","Físico"]
[37,21340005,"09","CONVENIOS",null,"09-07   CONVENIOS INTERADMINISTRATIVOS","Convenio de cooperación 21302403-013-2016 asociación de ingenieros electricistas de la universidad de Antioquia -AIE-","EDNOF16-473","8","Junio","2015","10","Junio","2017",10,"x",null,null,"Inactivo / Transferencia","Físico"]
[38,21340005,"09","CONVENIOS",null,"09-07   CONVENIOS INTERADMINISTRATIVOS","Convenio especifico de cooperación No. 21310003-009-2017 universidad de la guajira, universidad nacional de colombia sede palmira, universidad pontificia bolivariana y la universidad de ibague",null,"2","Noviembre","2017","2","Noviembre","2017",7,"x",null,null,"Inactivo / Transferencia","Físico"]
[39,21340005,"09","CONVENIOS",null,"09-07   CONVENIOS INTERADMINISTRATIVOS","Convenio de cooperación 21302403-018-2016 asociación de ingenieros electricistas de la universidad de Antioquia -AIE- ","EDNOF16-494","23","Septiembre","2016","7","Junio","2017",15,"x",null,null,"Inactivo / Transferencia","Físico"]
[40,21340005,"08","CONTRATOS",null,"08-15   CONTRATOS INTERADMINISTRATIVOS","Contrato interadministrativo No. 4600054635 Municipio de Medellín","EDNOF14-348","4","Julio","2014","3","Marzo","2016",46,"x",null,null,"Inactivo / Transferencia","Físico"]
[41,21340005,"08","CONTRATOS",null,"08-15   CONTRATOS INTERADMINISTRATIVOS","Contrato interadministrativo No. 21302403-007-2016 INVESA S.A.","EDNOF16-457","15","Abril","2016","27","Febrero","2016",8,"x",null,null,"Inactivo / Transferencia","Físico"]
[42,21340005,"08","CONTRATOS",null,"08-15   CONTRATOS INTERADMINISTRATIVOS","Orden de servicio No. 001 con empresas públicas de la ceja E.S.P","EDNOF16-459","20","Abril","2016","27","Febrero","2017",11,"x",null,null,"Inactivo / Transferencia","Físico"]
[43,21340005,"09","CONVENIOS",null,"09-07   CONVENIOS INTERADMINISTRATIVOS","Convenio No. 21302403-001-2016 Strategic data S.A.S.","EDNOF16-456","27","Enero ","2016","1","Febrero","2017",14,"x",null,null,"Inactivo / Transferencia","Físico"]
[44,21340005,"09","CONVENIOS",null,"09-07   CONVENIOS INTERADMINISTRATIVOS","Convenio de cooperación 8501-005-2015 asociación de ingenieros electricistas de la universidad de Antioquia -AIE- ","EDNOF15-394","12","Mayo","2015","25","Febrero","2016",11,"x",null,null,"Inactivo / Transferencia","Físico"]
[45,21340005,"22","PROYECTOS",null,"22-03   PROYECTOS DE INVESTIGACIÓN","Proyecto de investigación factores de éxito relacionados con el perfil con el perfil y la gestión del servicio del empresariado del oriente antioqueño de las regiones de Santuario, Granada y Marilla.","PI11-1-05","6","Octubre","2011","2","Febrero","2015",114,"x",null,null,"Inactivo / Transferencia","Físico"]
[46,21340005,"22","PROYECTOS",null,"22-03   PROYECTOS DE INVESTIGACIÓN","Incorporación de incertidumbres hidrológicas no estacionarias en la formulación de proyectos de ingeniería ","PI10-1-08","13","Octubre","2010","25","Enero ","2016",86,"x",null,null,"Inactivo / Transferencia","Físico"]
[50,21340005,"22","PROYECTOS",null,"22-03   PROYECTOS DE INVESTIGACIÓN","Impactos del cambio climatico en la dinamica de lagos y cienagas en Colombia ","PI12-1-03",7,"Mayo","2012","25","Julio","2017",104,"x",null,null,"Inactivo / Transferencia","Físico"]
[84,21340005,"08","CONTRATOS",null,"08-15   CONTRATOS INTERADMINISTRATIVOS","Contrato RC No.169-2009 Colciencias",null,null,null,null,"22","Mayo","2014",10,"x",null,null,"Inactivo / Transferencia","Físico"]
[101,21340005,"22","PROYECTOS",null,"22-03   PROYECTOS DE INVESTIGACIÓN","Impactos de la variabilidad climática en sistemas hidrosociales y locales: una aproximación metodológica desde las perspectivas física y antropológica","PRG13-2-03","19","Julio","2013","6","Septiembre","2017",58,"x",null,null,"Inactivo / Transferencia","Físico"]
[102,21340005,"22","PROYECTOS",null,"22-03   PROYECTOS DE INVESTIGACIÓN","Evaluación de índices para la predicción del éxito en el destete a partir de señales electromiográficas de superficie ","MDC11-1-07","20","Mayo","2011","17","Febrero","2015",50,"x",null,null,"Inactivo / Transferencia","Físico"]
[103,21340005,"22","PROYECTOS",null,"22-03   PROYECTOS DE INVESTIGACIÓN","Propiedades mecánicas en compresión y resistencia al desgaste abrasivo de una pieza gruesa de caucho ","MDC10-1-01","21","Abril","2010","7","Septiembre","2015",47,"x",null,null,"Inactivo / Transferencia","Físico"]
[104,21340005,"22","PROYECTOS",null,"22-03   PROYECTOS DE INVESTIGACIÓN","Diseño e implementación de un filtro óptico pasivo controlable basado en redes de Bragg en fibra óptica para el diseño de esquemas de asignación de ancho de banda ","MDC11-1-04","27","Marzo","2012","4","Mayo","2016",35,"x",null,null,"Inactivo / Transferencia","Físico"]
[105,21340005,"22","PROYECTOS",null,"22-03   PROYECTOS DE INVESTIGACIÓN","Producción de acetato de nopilo por esterificación de nopol con ácido acético sobre materiales de sn en soportes mesoporosos. Estudio cinético y determinación del ELV del sistema cuaternario","MDC11-1-12","20","Mayo","2011","17","Febrero","2017",39,"x",null,null,"Inactivo / Transferencia","Físico"]
[106,21340005,"22","PROYECTOS",null,"22-03   PROYECTOS DE INVESTIGACIÓN","Identificación de marcadores preclínicos de la mutación E280A de la enfermedad de alzheimer a partir de medidas de conectividad de EEG","PRG14-1-02","10","Julio","2013","27","Marzo","2017",38,"x"]
[107,21340005,"22","PROYECTOS",null,"22-03   PROYECTOS DE INVESTIGACIÓN","modelado simlación y optimización de la producción de biomasa a partir de cultivos celulares de thevetia peruviana","MDC11-1-08","27","Enero ","2011","5","Mayo","2017",83,"x"]
[108,21340005,"22","PROYECTOS",null,"22-03   PROYECTOS DE INVESTIGACIÓN","Síntesis y caracterización de cuerpos porosos de hidroxiapatita obtenidos por diferentes técnicas de producción","MDC09-1-07","20","Enero ","2009","4","Junio","2015",45,"x"]
[109,21340005,"22","PROYECTOS",null,"22-03   PROYECTOS DE INVESTIGACIÓN","Escalado del proceso de decoloración de efluentes industriales textiles en un biorreactor prototipo de 5L de lecho fijo con el hongo anamorfo R1 de Bjerkandera sp. Inmovilizado ","PRG13-2-10","20","Noviembre","2013","18","Octubre","2017",43,"x"]
[110,21340005,"08","CONTRATOS",null,"08-11   CONTRATOS DE PRESTACIÓN DE SERVICIOS PERSONALES","Contrato de prestación de servicios 8501-020-2008 Jorge Alberto Ramírez Gómez","EDNOF08-040","20","Agosto","2007","30","Septiembre","2008",12,"x"]
[111,21340005,"22","PROYECTOS",null,"22-03   PROYECTOS DE INVESTIGACIÓN","Desarrollo de metaheurísticos híbridos y métodos cooperativos para problemas de rutas de vehículos con flota hetereogénea y restricciones adicionales","MDC11-1-09","10","Mayo","2011","3","Marzo","2017",29,"x"]
[112,21340005,"08","CONTRATOS",null,"08-11   CONTRATOS DE PRESTACIÓN DE SERVICIOS PERSONALES","Contrato de prestación de servicios 8501-022-2008 Jaime Andrés Giraldo Alzate ","EDNOF08-022","3","Septiembre","2008","1","Diciembre","2008",12,"x"]
[114,21340005,"09","CONVENIOS",null,"09-07   CONVENIOS INTERADMINISTRATIVOS","Convenio 21302403-002-2015 Asociación de químicos farmacéuticos de Antioquia -AQUIFAR-","EDNOF15-380","28","Mayo","2015","18","Julio","2016",9,"x"]
[124,21340005,"09","CONVENIOS",null,"09-07   CONVENIOS INTERADMINISTRATIVOS","Convenio de asociación No. 4600000201 de 2013 Departamento de Antioquia, la corporación autónoma regional del centro de Antioquia corantioquia ",4600000201,"10","Julio","2013","24","Octubre","2014",20,"x"]
[126,21340005,"22","PROYECTOS",null,"22-03   PROYECTOS DE INVESTIGACIÓN","Valoración de la glicerina como materia prima para la producción de propilenglicol usando catalizadores basados en zeolitas jerárquicas bifuncionales","MDC11-1-10","19","Abril","2012","5","Mayo","2017",36,"x"]
[127,21340005,"22","PROYECTOS",null,"22-03   PROYECTOS DE INVESTIGACIÓN","Hacia resinas alquídicas más amigables: Síntesis y caracterización de resinas alquídicas con morfología estructural tipo peine, base solvente (alto contenido de sólidos) y base acuosa ","MDC11-1-01","9","Junio","2011","19","Julio","2016",35,"x"]
[129,21340005,"22","PROYECTOS",null,"22-03   PROYECTOS DE INVESTIGACIÓN","Utilización de nuevos materiales, métodos y procesos en la fabricación de componentes de microcentrales hidráulicas","EPM10-02","1","Octubre","2009","16","Julio","2010",17,"x"]
[130,21340005,"22","PROYECTOS",null,"22-03   PROYECTOS DE INVESTIGACIÓN","Evaluación experimental del fading utilizando carburo de silicio metalúrgico como agente inoculante en los hierros grises","MDC10-1-02","31","Agosto","2011","27","Marzo","2017",37,"x"]
[131,21340005,"22","PROYECTOS",null,"22-03   PROYECTOS DE INVESTIGACIÓN","Estudio del daño por hidrógeno en aceros utilizados en la industria del petróleo y su influencia sobre la integridad de las líneas de transporte de hidrocarburos ","MDC10-1-03","10","Junio","2010","25","Noviembre","2014",34,"x"]
[132,21340005,"22","PROYECTOS",null,"22-03   PROYECTOS DE INVESTIGACIÓN","Red de monitoreo de la calidad del agua del río aburrá - Medellín","PI 14-2-03","5","Septiembre","2014","9","Agosto","2017",33,"x"]
[134,21340005,"22","PROYECTOS",null,"22-03   PROYECTOS DE INVESTIGACIÓN","Diseño y construcción de una celda de consolidación por electro-ósmosis para la obtención de parámetros de comprensibilidad en suelos finogranulares","PR15-2-07","23","Octubre","2015","20","Enero ","2017",39,"x"]
[135,21340005,"22","PROYECTOS",null,"22-03   PROYECTOS DE INVESTIGACIÓN","Protocolo para destete de la ventilación mecánica en pacientes intoxicados con organofosforados utilizando análisis de actividad muscular respiratoria, mecánica ventilatoria, modelado farmacodinámico y dinámica de fluidos ","PRG13-2-08","28","Marzo","2013","27","Marzo","2017",44,"x"]
[null,21340005,"",null,null,null,null,null,null,null,null,null,null,null,null,"x"]
[null,21340005,"",null,null,null,null,null,null,null,null,null,null,null,null,"x"]
[null,21340005,"",null,null,null,null,null,null,null,null,null,null,null,null,"x"]
[null,21340005,"",null,null,null,null,null,null,null,null,null,null,null,null,"x"]
[null,null,"",null,null,null,null,null,null,null,null,null,null,null,null,"x"]
[null,null,"",null,null,null,null,null,null,null,null,null,null,null,null,"x"]
[null,null,"",null,null,null,null,null,null,null,null,null,null,null,null,"x"]
[null,null,{"$f":"IFERROR(VLOOKUP(D73,CodSerie2010,2,FALSE),\"\")","v":""},null,null,null,null,null,null,null,null,null,null,null,null,"x"]
[null,null,"",null,null,null,null,null,null,null,null,null,null,null,null,"x"]
[null,null,""]
[null,null,""]
[null,null,""]
[null,null,""]
[null,null,""]
[null,null,""]
[null,null,""]
[null,null,""]
[null,null,""]
[null,null,""]
[null,null,""]
[null,null,""]
[null,null,""]
[null,null,""]
[null,null,""]
[null,null,""]
[null,null,""]
[null,null,""]
[null,null,""]
[null,null,""]
[null,null,""]
[null,null,""]
[null,null,""]
[null,null,""]
[null,null,""]
[null,null,""]
[null,null,""]
[null,null,""]
[null,null,""]
[null,null,""]
[null,null,""]
[null,null,""]
[null,null,""]
[null,null,""]
[null,null,""]
[null,null,""]
[null,null,""]
[null,null,""]
[null,null,""]
[null,null,""]
[null,null,""]
[null,null,""]
[null,null,""]
[null,null,""]
[null,null,""]
[null,null,""]
[null,null,""]
[null,null,""]
[null,null,""]
[null,null,""]
[null,null,""]
[null,null,""]
[null,null,""]
[null,null,""]
[null,null,""]
[null,null,""]
[null,null,""]
[null,null,""]
[null,null,""]
[null,null,""]
[null,null,""]
[null,null,""]
[null,null,{"$f":"IFERROR(VLOOKUP(D137,CodSerie2010,2,FALSE),\"\")","v":""}]
[null,null,""]
[null,null,""]
[null,null,""]
[null,null,""]
[null,null,""]
[null,null,""]
[null,null,""]
[null,null,""]
[null,null,""]
[null,null,""]
[null,null,""]
[null,null,""]
[null,null,""]
[null,null,""]
[null,null,""]
[null,null,""]
[null,null,""]
[null,null,""]
[null,null,""]
[null,null,""]
[null,null,""]
[null,null,""]
[null,null,""]
[null,null,""]
[null,null,""]
[null,null,""]
[null,null,""]
[null,null,""]
[null,null,""]
[null,null,""]
[null,null,""]
[null,null,""]
[null,null,""]
[null,null,""]
[null,null,""]
[null,null,""]
[null,null,""]
[null,null,""]
[null,null,""]
[null,null,""]
[null,null,""]
[null,null,""]
[null,null,""]
[null,null,""]
[null,null,""]
[null,null,""]
[null,null,""]
[null,null,""]
[null,null,""]
[null,null,""]
[null,null,""]
[null,null,""]
[null,null,""]
[null,null,""]
[null,null,""]
[null,null,""]
[null,null,""]
[null,null,""]
[null,null,""]
[null,null,""]
[null,null,""]
[null,null,""]
[null,null,"01","ACTAS"]
[null,null,{"$f":"IFERROR(VLOOKUP(D201,CodSerie2010,2,FALSE),\"\")","v":""}]
[null,null,""]
[null,null,""]
[null,null,""]
[null,null,""]
[null,null,""]
[null,null,""]
[null,null,""]
[null,null,""]
[null,null,""]
[null,null,""]
[null,null,""]
[null,null,""]
[null,null,""]
[null,null,""]
[null,null,""]
[null,null,""]
[null,null,""]
[null,null,""]
[null,null,""]
[null,null,""]
[null,null,""]
[null,null,""]
[null,null,""]
[null,null,""]
[null,null,""]
[null,null,""]
[null,null,""]
[null,null,""]
[null,null,""]
[null,null,""]
[null,null,""]
[null,null,""]
[null,null,""]
[null,null,""]
[null,null,""]
[null,null,""]
[null,null,""]
[null,null,""]
[null,null,""]
[null,null,""]
[null,null,""]
[null,null,""]
[null,null,""]
[null,null,""]
[null,null,""]
[null,null,""]
[null,null,""]
[null,null,""]
[null,null,""]
[null,null,""]
[null,null,""]
[null,null,""]
[null,null,""]
[null,null,""]
[null,null,""]
[null,null,""]
[null,null,""]
[null,null,""]
[null,null,""]
[null,null,""]
[null,null,""]
[null,null,""]
[null,null,""]
[null,null,{"$f":"IFERROR(VLOOKUP(D265,CodSerie2010,2,FALSE),\"\")","v":""}]
[null,null,""]
[null,null,""]
[null,null,""]
[null,null,""]
[null,null,""]
[null,null,""]
[null,null,""]
[null,null,""]
[null,null,""]
[null,null,""]
[null,null,""]
[null,null,""]
[null,null,""]
[null,null,""]
[null,null,""]
[null,null,""]
[null,null,""]
[null,null,""]
[null,null,""]
[null,null,""]
[null,null,""]
[null,null,""]
[null,null,""]
[null,null,""]
[null,null,""]
[null,null,""]
[null,null,""]
[null,null,""]
[null,null,""]
[null,null,""]
[null,null,""]
[null,null,""]
[null,null,""]
[null,null,""]
[null,null,""]
[null,null,""]
[null,null,""]
[null,null,""]
[null,null,""]
[null,null,""]
[null,null,""]
[null,null,""]
[null,null,""]
[null,null,""]
[null,null,""]
[null,null,""]
[null,null,""]
[null,null,""]
[null,null,""]
[null,null,""]
[null,null,""]
[null,null,""]
[null,null,""]
[null,null,""]
[null,null,""]
[null,null,""]
[null,null,""]
[null,null,""]
[null,null,""]
[null,null,""]
[null,null,""]
[null,null,""]
[null,null,""]
[null,null,{"$f":"IFERROR(VLOOKUP(D329,CodSerie2010,2,FALSE),\"\")","v":""}]
[null,null,""]
[null,null,""]
[null,null,""]
[null,null,""]
[null,null,""]
[null,null,""]
[null,null,""]
[null,null,""]
[null,null,""]
[null,null,""]
[null,null,""]
[null,null,""]
[null,null,""]
[null,null,""]
[null,null,""]
[null,null,""]
[null,null,""]
[null,null,""]
[null,null,""]
[null,null,""]
[null,null,""]
[null,null,""]
[null,null,""]
[null,null,""]
[null,null,""]
[null,null,""]
[null,null,""]
[null,null,""]
[null,null,""]
[null,null,""]
[null,null,""]
[null,null,""]
[null,null,""]
[null,null,""]
[null,null,""]
[null,null,""]
[null,null,""]
[null,null,""]
[null,null,""]
[null,null,""]
[null,null,""]
[null,null,""]
[null,null,""]
[null,null,""]
[null,null,""]
[null,null,""]
[null,null,""]
[null,null,""]
[null,null,""]
[null,null,""]
[null,null,""]
[null,null,""]
[null,null,""]
[null,null,""]
[null,null,""]
[null,null,""]
[null,null,""]
[null,null,""]
[null,null,""]
[null,null,""]
[null,null,""]
[null,null,""]
[null,null,""]
[null,null,{"$f":"IFERROR(VLOOKUP(D393,CodSerie2010,2,FALSE),\"\")","v":""}]
[null,null,""]
[null,null,""]
[null,null,""]
[null,null,""]
[null,null,""]
[null,null,""]
[null,null,""]
[null,null,""]
[null,null,""]
[null,null,""]
[null,null,""]
[null,null,""]
[null,null,""]
[null,null,""]
[null,null,""]
[null,null,""]
[null,null,""]
[null,null,""]
[null,null,""]
[null,null,""]
[null,null,""]
[null,null,""]
[null,null,""]
[null,null,""]
[null,null,""]
[null,null,""]
[null,null,""]
[null,null,""]
[null,null,""]
[null,null,""]
[null,null,""]
[null,null,""]
[null,null,""]
[null,null,""]
[null,null,""]
[null,null,""]
[null,null,""]
[null,null,""]
[null,null,""]
[null,null,""]
[null,null,""]
[null,null,""]
[null,null,""]
[null,null,""]
[null,null,""]
[null,null,""]
[null,null,""]
[null,null,""]
[null,null,""]
[null,null,""]
[null,null,""]
[null,null,""]
[null,null,""]
[null,null,""]
[null,null,""]
[null,null,""]
[null,null,""]
[null,null,""]
[null,null,""]
[null,null,""]
[null,null,""]
[null,null,""]
[null,null,""]
[null,null,{"$f":"IFERROR(VLOOKUP(D457,CodSerie2010,2,FALSE),\"\")","v":""}]
[null,null,""]
[null,null,""]
[null,null,""]
[null,null,""]
[null,null,""]
[null,null,""]
[null,null,""]
[null,null,""]
[null,null,""]
[null,null,""]
[null,null,""]
[null,null,""]
[null,null,""]
[null,null,""]
[null,null,""]
[null,null,""]
[null,null,""]
[null,null,""]
[null,null,""]
[null,null,""]
[null,null,""]
[null,null,""]
[null,null,""]
[null,null,""]
[null,null,""]
[null,null,""]
[null,null,""]
[null,null,""]
[null,null,""]
[null,null,""]
[null,null,""]
[null,null,""]
[null,null,""]
[null,null,""]
[null,null,""]
[null,null,""]
[null,null,""]
[null,null,""]
[null,null,""]
[null,null,""]
[null,null,""]
[null,null,""]
[null,null,""]
[null,null,""]
[null,null,""]
[null,null,""]
[null,null,""]
[null,null,""]
[null,null,""]
[null,null,""]
[null,null,""]
[null,null,""]
[null,null,""]
[null,null,""]
[null,null,""]
[null,null,""]
[null,null,""]
[null,null,""]
[null,null,""]
[null,null,""]
[null,null,""]
[null,null,""]
[null,null,""]
[null,null,{"$f":"IFERROR(VLOOKUP(D521,CodSerie2010,2,FALSE),\"\")","v":""}]
[null,null,""]
[null,null,""]
[null,null,""]
[null,null,""]
[null,null,""]
[null,null,""]
[null,null,""]
[null,null,""]
[null,null,""]
[null,null,""]
[null,null,""]
[null,null,""]
[null,null,""]
[null,null,""]
[null,null,""]
[null,null,""]
[null,null,""]
[null,null,""]
[null,null,""]
[null,null,""]
[null,null,""]
[null,null,""]
[null,null,""]
[null,null,""]
[null,null,""]
[null,null,""]
[null,null,""]
[null,null,""]
[null,null,""]
[null,null,""]
[null,null,""]
[null,null,""]
[null,null,""]
[null,null,""]
[null,null,"",null,{"$f":"IFERROR(VLOOKUP(F556,CodSubserie2010,2,FALSE),\"\")","v":""}]
[null,null,"",null,""]
[null,null,"",null,""]
[null,null,"",null,""]
[null,null,"",null,""]
[null,null,"",null,""]
[null,null,"",null,""]
[null,null,"",null,""]
[null,null,"",null,""]
[null,null,"",null,""]
[null,null,"",null,"",null,null,null,null,null,null,null,null,""]
[null,null,"",null,""]
[null,null,"",null,""]
[null,null,"",null,""]
[null,null,"",null,""]
[null,null,"",null,""]
["\n\n",null,null,null,null,null,null,null,null,null,null,null,null,null,null,null,null,null,null,null,null,null,null,null,null,null,null,null,null,null,{"$f":"CONCATENATE(I572,J572,K572)","v":""},{"$f":"CONCATENATE(L572,M572,N572)","v":""}]

{"sheet":"FUID 2018","index":1,"n_rows":543,"n_cols":32,"rows_kept":543,"cut":false,"hidden":false,"merged":[[542,0,543,21],[0,0,0,1],[5,0,7,0],[5,1,7,1],[5,2,7,2],[5,3,7,3],[5,4,7,4],[5,5,7,5],[5,6,7,6],[5,7,7,7],[5,8,5,13],[5,14,7,14],[6,11,6,13],[6,8,6,10],[0,2,0,21],[1,0,1,21],[5,21,7,21],[5,15,5,18],[5,20,7,20],[6,15,7,15],[6,16,7,16],[6,17,7,17],[6,18,7,18],[5,19,7,19],[2,0,2,21],[3,0,3,6],[4,0,4,6],[3,7,3,16],[4,7,4,16],[3,17,3,21],[4,17,4,21]]}
[null,null,"FORMATO ÚNICO DE INVENTARIO DOCUMENTAL - FUID"]
["DIVISIÓN DE GESTIÓN DOCUMENTAL"]
[]
["Unidad  académica o administrativa",null,null,null,null,null,null,"Dependencia",null,null,null,null,null,null,null,null,null,"Archivo de gestión"]
["SECRETARÍA GENERAL"]
["No. consecutivo","Código Dependencia OnBase","Código de  serie ","Nombre de la serie","Código de  subserie ","Nombre de la subserie ","Nombre del expediente","Código expediente","Fechas extremas",null,null,null,null,null,"Número de paginas","Unidad de conservación",null,null,null,"Soporte","Ubicación física","Observaciones"]
[null,null,null,null,null,null,null,null,"Fecha Inicial ",null,null,"Fecha final",null,null,null,"Carpeta","Tomo","Otro","Estado"]
[null,null,null,null,null,null,null,null,"D","M","A","D","M","A"]
[4,{"$f":"IF(C9<>\"\",(IFERROR(VLOOKUP($A$5,CodDepOnBase,2,1),\" \")),\"\")","v":"10500"},{"$f":"IFERROR(VLOOKUP(D9,'BD2'!V2:W33,2,0),\"\")","v":"08"},"CONTRATOS",{"$f":"IFERROR(VLOOKUP(F9,CodSubserie2018,2,0),\"\")","v":"08 "},"08.08 CONTRATOS DE ENCARGO FIDUCIARIO","Contrato interadministrativo No. 0976 – 2012 Fondo Nacional de financiamiento para la ciencia, la tecnología y la innovación Francisco José de Caldas","COL13-1-05","17","Diciembre","2012","26","Abril","2018",156,"x",null,null,"Inactivo / Transferencia","Físico y electrónico"]
[12,"10500",{"$f":"IFERROR(VLOOKUP(D10,'BD2'!V3:W34,2,0),\"\")","v":"08"},"CONTRATOS","19 ","08.19 CONTRATOS INTERADMINISTRATIVOS","Contrato de financiación No. 437 – 2013 Colciencias ","COL13-2-18","17","Julio","2012","5","Julio","2018",227,"x",null,null,"Inactivo / Transferencia","Físico y electrónico"]
[18,"10500",{"$f":"IFERROR(VLOOKUP(D11,'BD2'!V4:W35,2,0),\"\")","v":"27"},"PROYECTOS","04 ","27.04 PROYECTOS DE INVESTIGACIÓN","Desarrollo de un bioreactor prototipo de lecho fijo para el tratamiento de efluentes industriales textiles","FIT13-1-01","26","Noviembre","2012","28","Septiembre","2018",89,"x",null,null,"Inactivo / Transferencia","Físico y electrónico"]
[22,"10500",{"$f":"IFERROR(VLOOKUP(D12,'BD2'!V5:W36,2,0),\"\")","v":"08"},"CONTRATOS","19 ","08.19 CONTRATOS INTERADMINISTRATIVOS","Contrato de prestación de servicios No. 2017.10.003.020.167 municipio de la Ceja Tambo","EDNOF17-544","23","Junio","2017","5","Junio","2018",14,"x",null,null,"Inactivo / Transferencia","Físico"]
[23,"10500",{"$f":"IFERROR(VLOOKUP(D13,'BD2'!V6:W37,2,0),\"\")","v":"08"},"CONTRATOS","19 ","08.19 CONTRATOS INTERADMINISTRATIVOS","Contrato de prestación de servicios No. 21340003-017-2017 MAPEI Colombia","EDNOF17-541","5","Junio","2017","16","Mayo","2018",7,"x",null,null,"Inactivo / Transferencia","Físico"]
[25,"10500",{"$f":"IFERROR(VLOOKUP(D14,'BD2'!V8:W38,2,0),\"\")","v":"09"},"CONVENIOS","02 ","09.02 CONVENIOS DE COOPERACIÓN","convenio de cooperación 21340003-015-2017 mantonline S.A.S. ","EDNOF17-543","01","Junio","2017","13","Julio","2018",9,"x",null,null,"Inactivo / Transferencia","Físico"]
[26,null,null,"CONTRATOS",null,"08.19 CONTRATOS INTERADMINISTRATIVOS","Contrato de prestación de servicios No. 21340003-007-2017 NEW STETIC S.A","EDNOF17-524","08","Marzo","2017","16","Mayo","2018",12,"x",null,null,"Inactivo / Transferencia","Físico"]
[27,null,null,"CONTRATOS",null,"08.19 CONTRATOS INTERADMINISTRATIVOS","Contrato interadministrativo No. 21340003-014-2017 CORPORACIÓN PARA INVESTIGACIONES BIOLÓGICAS-CIB","EDNOF17-537","23","Mayo","2017","16","Mayo","2018",7,"x",null,null,"Inactivo / Transferencia","Físico"]
[28,null,null,"CONTRATOS",null,"08.19 CONTRATOS INTERADMINISTRATIVOS","Contrato de prestación de servicios No. 21340003-025-2017 Municipio de Sonsón","EDNOF17-528","24","Marzo","2017","10","Abril","2018",7,"x",null,null,"Inactivo / Transferencia","Físico"]
[29,null,null,"CONTRATOS",null,"08.19 CONTRATOS INTERADMINISTRATIVOS","Contrato de prestación de servicios No. 21340003-003-2017 Aseo y sostenimiento y compañía S.A.","EDNOF17-515","6","Febrero","2017","16","Mayo","2018",12,"x",null,null,"Inactivo / Transferencia","Físico"]
[30,null,null,"CONTRATOS",null,"08.19 CONTRATOS INTERADMINISTRATIVOS","Contrato de prestación de servicios No. 21340003-001-2017 transformadores SUNTEC","EDNOF17-514","18","Enero ","2017","16","Mayo","2018",7,"x",null,null,"Inactivo / Transferencia","Físico"]
[31,null,null,"CONVENIOS",null,"09.02 CONVENIOS DE COOPERACIÓN","convenio de cooperación 21330002-005-208 MASBIO CONSTRUCCIONES S.A.S",null,"21","Junio","2018","21","Junio","2018",6,"x",null,null,"Inactivo / Transferencia","Físico"]
[33,null,null,"CONTRATOS",null,"08.19 CONTRATOS INTERADMINISTRATIVOS","Acta de compromiso No. 21340003-011-2017 dirección de regionalización ","EDNOF17-533","26","Abril","2017","16","Mayo","2018",7,"x",null,null,"Inactivo / Transferencia","Físico"]
[47,null,null,"CONTRATOS",null,"08.19 CONTRATOS INTERADMINISTRATIVOS","Contrato No. 0339-2013 Fondo Nacional de financiamiento para la ciencia, la tecnología y la innovación Francisco José de Caldas","COL13-2-16","1","Octubre","2010","14","Junio","2019",143,"x",null,null,"Inactivo / Transferencia","Físico"]
[48,null,null,"CONTRATOS",null,"08.19 CONTRATOS INTERADMINISTRATIVOS","Contrato interadministrativo 21340006-10043984-2017 corporación interuniversitaria de servicios - CIS",4500047968," 25","Mayo","2017","6","Marzo","2018",70,"x"]
[49,null,null,"CONTRATOS",null,"08.19 CONTRATOS INTERADMINISTRATIVOS","Contrato interadministrativo 21340006-10045643-2017 corporación interuniversitaria de servicios - CIS",4500049468,"25","Julio","2017","9","Marzo","2018",52,"x"]
[51,null,null,"CONTRATOS",null,"08.19 CONTRATOS INTERADMINISTRATIVOS","Contrato interadministrativo 21340006-10052879-2017 corporación interuniversitaria de servicios - CIS",4500057584,"13","Diciembre","2017","18","Junio","2018",48,"x"]
[52,null,null,"CONTRATOS",null,"08.19 CONTRATOS INTERADMINISTRATIVOS","Contrato interadministrativo 21340006-10053165-2017 corporación interuniversitaria de servicios - CIS",4500057908,"23","Noviembre","2017","29","Enero ","2019",48,"x"]
[53,null,null,"CONTRATOS",null,"08.19 CONTRATOS INTERADMINISTRATIVOS","Contrato interadministrativo 21340006-100508206-2017 corporación interuniversitaria de servicios - CIS",4500055547,"21","Noviembre","2017","3","Abril","2019",11,"x"]
[54,null,null,"CONTRATOS",null,"08.19 CONTRATOS INTERADMINISTRATIVOS","Contrato interadministrativo 21340006-10045465-2017 corporación interuniversitaria de servicios - CIS",4500049954,"31","Julio","2017","15","Mayo","2018",27,"x"]
[55,null,null,"CONTRATOS",null,"08.19 CONTRATOS INTERADMINISTRATIVOS","Contrato interadministrativo 21340006-10052870-2017 corporación interuniversitaria de servicios - CIS",4500057907,"24","Octubre","2017","29","Enero ","2019",47,"x"]
[56,null,null,"CONTRATOS",null,"08.16 CONTRATOS DE SUMINISTRO","Contrato de suministro OP 4500052798 alto gourmet & eventos S.A.S",4500052798,"12","Septiembre","2017","3","Septiembre","2018",61,"x"]
[57,null,null,"CONTRATOS",null,"08.13 CONTRATOS DE PRESTACIÓN DE SERVICIOS","Contrato de prestación de servicios 21302406-10027625-2016 corporación interuniversitaria de servicios - CIS",4500031332,"1","Junio","2016","27","Febrero","2018",83,"x"]
[58,null,null,"CONTRATOS",null,"08.17 CONTRATOS DE TRANSPORTE","Contrato de transporte 21340006-10037508-2017 tax individual S.A.",4500041409,"31","Enero ","2017","15","Febrero","2018",67,"x"]
[59,null,null,"CONTRATOS",null,"08.17 CONTRATOS DE TRANSPORTE","Contrato de transporte OP 4500052919 tax individual S.A.",4500052919,"1","Octubre","2017","3","Septiembre","2018",70,"x"]
[60,null,null,"CONTRATOS",null,"08.17 CONTRATOS DE TRANSPORTE","Contrato de transporte OP 4500052734 MOLOSER S.A.S",4500052734,"25","Septiembre","2017","30","Mayo","2018",44,"x"]
[61,null,null,"CONTRATOS",null,"08.16 CONTRATOS DE SUMINISTRO","Contrato de suministro No. 4500042715 GHMC S.A.S",4500042715,"9","Febrero","2017","28","Mayo","2018",41,"x"]
[62,null,null,"CONTRATOS",null,"08.17 CONTRATOS DE TRANSPORTE","Contrato de transporte 21340006-10053530-2018 MOLOSER S.A.S",4500058268,"17","Enero ","2018","1","Junio","2018",58,"x"]
[63,null,null,"CONTRATOS",null,"08.13 CONTRATOS DE PRESTACIÓN DE SERVICIOS","Contrato de prestación de servicios 21340006-10040023-2017 corporación interuniversitaria de servicios - CIS",4500043811,"17","Febrero","2017","5","Marzo","2018",47,"x"]
[64,null,null,"CONTRATOS",null,"08.16 CONTRATOS DE SUMINISTRO","Contrato de suministro No. 4500053330 ideografic S.A.S",4500053330,"12","Octubre","2017","28","Enero ","2019",96,"x"]
[65,null,null,"CONTRATOS",null,"08.04 CONTRATOS DE COMPRAVENTA","Contrato de compraventa No. 21340005 HIGH TEC ENVIRONMENTAL LTDA",4500064358,"5","Junio","2018","29","Marzo","2019",94,"x"]
[66,null,null,"CONTRATOS",null,"08.16 CONTRATOS DE SUMINISTRO","Contrato de suministro No. 21340006-10058656-2018 ALTO GOURMET Y EVENTOS S.A.S.",4500063385,"5","Julio","2018","16","Julio","2019",67,"x"]
[67,null,null,"CONTRATOS",null,"08.13 CONTRATOS DE PRESTACIÓN DE SERVICIOS","Contrato de prestación de servicios 21340005 PE25170102-10057603-2018 corporación interuniversitaria de servicios - CIS",4500062128,"4","Julio","2018","29","Enero ","2019",57,"x"]
[68,null,null,"CONTRATOS",null,"08.13 CONTRATOS DE PRESTACIÓN DE SERVICIOS","Contrato de prestación de servicios 21340006-1005817-2018 corporación interuniversitaria de servicios - CIS",4500062854,"25","Junio","2018","25","Febrero","2019",58,"x"]
[69,null,null,"CONTRATOS",null,"08.13 CONTRATOS DE PRESTACIÓN DE SERVICIOS","Contrato de prestación de servicios 21302406-10036944-2018 corporación interuniversitaria de servicios - CIS",4500041158,"1","Marzo","2016","2","Marzo","2018",57,"x"]
[70,null,null,"CONTRATOS",null,"08.17 CONTRATOS DE TRANSPORTE","Contrato de transporte 21340006-10056381-2018 MOLOSER S.A.S",4500060896,"21","Marzo","2018","30","Enero ","2019",66,"x",null,null,"Inactivo / Transferencia"]
[71,null,null,"CONTRATOS",null,"08.17 CONTRATOS DE TRANSPORTE","Contrato de transporte 21340006-10057756-2018 MOLOSER S.A.S.",4500062307,"26","Junio","2018","29","Marzo","2019",57,"x"]
[72,null,null,"CONTRATOS",null,"08.13 CONTRATOS DE PRESTACIÓN DE SERVICIOS","Contrato de prestación de servicios Nro. 21340005 PE25170102-10060225-2018 corporación interuniversitaria de servicios - CIS",4500064920,"24","Agosto","2018","1","Abril","2019",46,"x"]
[73,null,null,"CONTRATOS",null,"08.13 CONTRATOS DE PRESTACIÓN DE SERVICIOS","Contrato de prestación de servicios 21340006-1005818-2018 corporación interuniversitaria de servicios - CIS",4500062855,"25","Junio","2018","26","Febrero","2019",37,"x"]
[74,null,null,"CONTRATOS",null,"08.17 CONTRATOS DE TRANSPORTE","Contrato de transporte 21340006-10053208-2017 MOLOSER S.A.S.",4500057947,"18","Enero ","2018","30","Abril","2019",12,"x"]
[75,null,null,"CONTRATOS",null,"08.13 CONTRATOS DE PRESTACIÓN DE SERVICIOS","Contrato de prestación de servicios 21340006-10053433-2018 corporación interuniversitaria de servicios - CIS",4500058226,"17","Enero ","2018","30","Abril","2019",38,"x"]
[76,null,null,"CONTRATOS",null,"08.04 CONTRATOS DE COMPRAVENTA","Contrato de compraventa Nro. 21340006-10041977-2017 PROVEDATA S.A.S ",4500047320,"6","Febrero","2017","5","Febrero","2018",58,"x"]
[77,null,null,"CONTRATOS",null,"08.04 CONTRATOS DE COMPRAVENTA","Contrato de compraventa 21340006-10056913-2018 Industria  Y Tecnología Symtek S.A.S ",4500063085,"12","Julio","2018","26","Febrero","2019",28]
[78,null,null,"CONTRATOS",null,"08.13 CONTRATOS DE PRESTACIÓN DE SERVICIOS","Contrato de prestación de servicios COT-19-001 ","ASCON19-447","16","Enero ","2019","12","Agosto","2019",6]
[79,null,null,"CONTRATOS",null,"08.13 CONTRATOS DE PRESTACIÓN DE SERVICIOS","Contrato de prestación de servicios No. 21340006-008-2019 BYCSA S.A ","ASCON 19-456","4","Marzo","2019","12","Agosto","2019",5]
[80,null,null,"CONTRATOS",null,"08.13 CONTRATOS DE PRESTACIÓN DE SERVICIOS","Contrato de prestación de servicios No. 21340006-035-2018 INVESA S.A ","ASCON 19-448","11","Diciembre","2018","13","Agosto","2019",5]
[81,null,null,"CONTRATOS",null,"08.13 CONTRATOS DE PRESTACIÓN DE SERVICIOS","Contrato de prestación de servicios No. 21340006-010-2019 COLVECAR S.A.S ","ASCON 19-458","27","Marzo","2019","22","Julio","2019",29]
[82,null,null,"CONTRATOS",null,"08.13 CONTRATOS DE PRESTACIÓN DE SERVICIOS","Contrato de prestación de servicios 21340005 PE 25170102-10069359-2019 corporación interuniversitaria de servicios - CIS",4500074711,"11","Abril","2019","9","Septiembre","2019",40]
[83,null,null,"CONTRATOS",null,"08.19 CONTRATOS INTERADMINISTRATIVOS","Contrato interadministrativo Nro. 314SO2018 Municipio de marinilla Antioquia ","ASCON 18-444","19","Noviembre","2018","26","Marzo","2019",10]
[85,null,null,"CONTRATOS",null,"08.13 CONTRATOS DE PRESTACIÓN DE SERVICIOS","Contrato de prestación de servicios 21340006-006-2017  INTECCON Colombia S.A.S ","ASCON 17-373","30","Marzo","2017","22","Julio","2019",6]
[86,null,null,"CONTRATOS",null,"08.13 CONTRATOS DE PRESTACIÓN DE SERVICIOS","Contrato de prestación de servicios No. CPS-2017-464 corporación interuniversitaria de servicios - CIS","ASCON 17-390","1","Agosto","2017","2","Octubre","2018",15]
[87,null,null,"CONTRATOS",null,"08.13 CONTRATOS DE PRESTACIÓN DE SERVICIOS","Contrato de prestación de servicios No. 21340005 PE25170102-10071912-2019 corporación interuniversitaria de servicios - CIS ",4500077479,"19","Junio","2019","2","Julio","2019",41]
[88,null,null,"CONTRATOS",null,"08.13 CONTRATOS DE PRESTACIÓN DE SERVICIOS","Contrato de prestación de servicios No. 21340005 PE25170102-10065265-2018 corporación interuniversitaria de servicios - CIS ",4500070583,"3","Diciembre","2018","2","Julio","2019",18]
[89,null,null,"CONTRATOS",null,"08.13 CONTRATOS DE PRESTACIÓN DE SERVICIOS","Contrato de prestación de servicios No. 21340005-10071269-2019 corporación interuniversitaria de servicios - CIS ",4500077189,"7","Mayo","2019","13","Febrero","2020",40]
[90,null,null,"CONTRATOS",null,"08.13 CONTRATOS DE PRESTACIÓN DE SERVICIOS","Contrato de prestación de servicios No. 21340005 PE25170102-10072836-2019 corporación interuniversitaria de servicios - CIS ",4500078709,"12","Julio","2019","31","Enero ","2020",51]
[91,null,null,"CONTRATOS",null,"08.13 CONTRATOS DE PRESTACIÓN DE SERVICIOS","Contrato de prestación de servicios No. 21340006-10064872-2018 corporación interuniversitaria de servicios - CIS ",4500070474,"14","Noviembre","2018","27","Agosto","2019",75]
[92,null,null,"CONTRATOS",null,"08.13 CONTRATOS DE PRESTACIÓN DE SERVICIOS","Contrato de prestación de servicios No. 21340006-10071211-2019 corporación interuniversitaria de servicios - CIS ",4500077190,"5","Mayo","2019","6","Febrero","2020",36]
[93,null,null,"CONTRATOS",null,"08.13 CONTRATOS DE PRESTACIÓN DE SERVICIOS","Contrato de prestación de servicios No. 21340006-10064871-2018 corporación interuniversitaria de servicios - CIS",4500070473,"14","Noviembre","2018","29","Agosto","2019",77]
[94,null,null,"CONVENIOS",null,"09.02 CONVENIOS DE COOPERACIÓN","Convenio especial de cooperación No. C-0144-16 Corporación ruta N Medellín ","C-0144-16 ","26","Julio","2016","4","Enero ","2018",16]
[95,null,null,"CONTRATOS",null,"08.13 CONTRATOS DE PRESTACIÓN DE SERVICIOS","Contrato de prestación de servicios No. 21340003-004-2017 UNIPLES ","EDNOF17-513","31","Enero ","2017","16","Mayo","2018",7]
[96,null,null,"CONTRATOS",null,"08.13 CONTRATOS DE PRESTACIÓN DE SERVICIOS","Contrato de prestación de servicios No. 21340003-032-2017 Tamayo Palacio y CIA S.A ","EDNOF17-573","20","Septiembre","2017","6","Junio","2018",6]
[97,null,null,"CONVENIOS",null,"09.02 CONVENIOS DE COOPERACIÓN","Convenio especial de cooperación 21340003-015-2017 Mantonline S.A.S. ","EDNOF17-542","1","Junio","2017","10","Abril","2018",8]
[98,null,null,"CONTRATOS",null,"08.13 CONTRATOS DE PRESTACIÓN DE SERVICIOS","Contrato de prestación de servicios No. 21340005 PE25170102-10068168-2019 corporación interuniversitaria de servicios - CIS",4500073490,"15","Marzo","2019","9","Septiembre","2019",48]
[99,null,null,"CONVENIOS",null,"09.05 CONVENIOS INTERADMINISTRATIVOS","Convenio 8501-007-2013 Asociación de químicos farmacéuticos de Antioquia -AQUIFAR- 99",null,"26","Noviembre","2013","26","Noviembre","2013",5]
[100,null,null,"CONTRATOS",null,"08.17 CONTRATOS DE TRANSPORTE","Contrato de transporte 21340006-10064770-2018 MOLOSER S.A.S. ",4500069882,"21","Noviembre","2017","29","Enero ","2020",75]
[113,null,null,"CONVENIOS",null,"09.02 CONVENIOS DE COOPERACIÓN","Convenio de cooperación 21340003-033-2017 asociación de ingenieros electricistas de la universidad de Antioquia -AIE- ","EDNOF17-556","7","Agosto","2017","23","Julio","2018",9]
[115,null,null,"CONTRATOS",null,"08.13 CONTRATOS DE PRESTACIÓN DE SERVICIOS","Contrato de prestación de servicios No. 21340005-CV 25170102-10060360-2018 E+INGENIERIA S.A.S",4500065035,"7","Septiembre","2018","6","Mayo","2019",15]
[116,null,null,"CONTRATOS",null,"08.19 CONTRATOS INTERADMINISTRATIVOS","Contrato interadministrativo No. 0192 instituto para el desarrollo de Antioquia -IDEA-","ASCON18-435","28","Agosto","2018","9","Abril","2019",11]
[117,null,null,"CONTRATOS",null,"08.13 CONTRATOS DE PRESTACIÓN DE SERVICIOS","Contrato de prestación de servicios No. 21340006-001-2018 Cooperativa de transportadores del Urabá y occidente antioqueño - cootransuroccidente","ASCON18-410","19","Enero ","2018","17","Septiembre","2018",9]
[118,null,null,"CONVENIOS",null,"09.05 CONVENIOS INTERADMINISTRATIVOS","Convenio interadministrativo No. 121 Municipio de Jericó",null,"6","Junio","2015","6","Junio","2015",3]
[119,null,null,"CONTRATOS",null,"08.19 CONTRATOS INTERADMINISTRATIVOS","Contrato interadministrativo No. 4600070091 de 2017 Municipio de Medellín","ASCON17-379","15","Mayo","2017","16","Septiembre","2019",19]
[120,null,null,"CONTRATOS",null,"08.13 CONTRATOS DE PRESTACIÓN DE SERVICIOS","Contrato de prestación de servicios No. 21340006-007-2018-SP-C-040-18 serviaseo Popayan S.A E.S.P","ASCON18-423","19","Junio","2017","29","Mayo","2019",9]
[121,null,null,"CONVENIOS",null,"09.05 CONVENIOS INTERADMINISTRATIVOS","Convenio interadministrativo No. 21302406-028-2016 Departamento de Caldas ","ASCON17-365","17","Noviembre","2016","6","Marzo","2019",12]
[122,null,null,"CONTRATOS",null,"08.13 CONTRATOS DE PRESTACIÓN DE SERVICIOS","Contrato de prestación de servicios No. 21340006-010-2017 Federación nacional de biocombustibles de Colombia - fedebiocombustibles ","ASCON17-388","11","Julio","2017","25","Enero ","2019",19]
[123,null,null,"CONVENIOS",null,"09.02 CONVENIOS DE COOPERACIÓN","Convenio especial de cooperación No. 563 Colciencias",null,"13","Marzo","2012","7","Febrero","2018",26]
[125,null,null,"CONVENIOS",null,"09.02 CONVENIOS DE COOPERACIÓN","Convenio especial de cooperación No. FP44842-347-2015 Fiduprevisora S.A",null,"24","Junio","2015","2","Febrero","2018",19]
[129,null,null,"PROYECTOS",null,"27.04 PROYECTOS DE INVESTIGACIÓN","Hidrooxigenación de triglicéridos y ácidos grasos usando gas de síntesis como fuente de hidrógeno ","PRG2015-7414","1","Agosto","2016","17","Septiembre","2018",28]
[133,null,null,"PROYECTOS",null,"27.04 PROYECTOS DE INVESTIGACIÓN","Influencia del tratamiento térmico en las propiedades tribológicas de recubrimientos autocatalíticos Ni-B","PRG-2014-914","29","Abril","2014","29","Agosto","2019",20]
[136,null,null,"CONTRATOS",null,"08.17 CONTRATOS DE TRANSPORTE","Contrato de transporte 21340005 CV25170108-10074105-2019 MOLOSER S.A.S.",4500080527,"10","Septiembre","2019","30","Enero ","2020",48]
[137,null,null,"CONTRATOS",null,"08.19 CONTRATOS INTERADMINISTRATIVOS","Convenio interadministrativo No. 4600009817 Departamento de Antioquia",4600009817,"21","Junio","2019","18","Junio","2020",26]
[]
[]
[]
[]
[]
[]
[]
[]
[]
[]
[]
[]
[]
[]
[]
[]
[]
[]
[]
[]
[]
[]
[]
[]
[]
[]
[]
[]
[]
[]
[]
[]
[]
[]
[]
[]
[]
[]
[]
[]
[]
[]
[]
[]
[]
[]
[]
[]
[]
[]
[]
[]
[]
[]
[]
[]
[]
[]
[]
[]
[]
[]
[]
[]
[]
[]
[]
[]
[]
[]
[]
[]
[]
[]
[]
[]
[]
[]
[]
[]
[]
[]
[]
[]
[]
[]
[]
[]
[]
[]
[]
[]
[]
[]
[]
[]
[]
[]
[]
[]
[]
[]
[]
[]
[]
[]
[]
[]
[]
[]
[]
[]
[]
[]
[]
[]
[]
[]
[]
[]
[]
[]
[]
[]
[]
[]
[]
[]
[]
[]
[]
[]
[]
[]
[]
[]
[]
[]
[]
[]
[]
[]
[]
[]
[]
[]
[]
[]
[]
[]
[]
[]
[]
[]
[]
[]
[]
[]
[]
[]
[]
[]
[]
[]
[]
[]
[]
[]
[]
[]
[]
[]
[]
[]
[]
[]
[]
[]
[]
[]
[]
[]
[]
[]
[]
[]
[]
[]
[]
[]
[]
[]
[]
[]
[]
[]
[]
[]
[]
[]
[]
[]
[]
[]
[]
[]
[]
[]
[]
[]
[]
[]
[]
[]
[]
[]
[]
[]
[]
[]
[]
[]
[]
[]
[]
[]
[]
[]
[]
[]
[]
[]
[]
[]
[]
[]
[]
[]
[]
[]
[]
[]
[]
[]
[]
[]
[]
[]
[]
[]
[]
[]
[]
[]
[]
[]
[]
[]
[]
[]
[]
[]
[]
[]
[]
[]
[]
[]
[]
[]
[]
[]
[]
[]
[]
[]
[]
[]
[]
[]
[]
[]
[]
[]
[]
[]
[]
[]
[]
[]
[]
[]
[]
[]
[]
[]
[]
[]
[]
[]
[]
[]
[]
[]
[]
[]
[]
[]
[]
[]
[]
[]
[]
[]
[]
[]
[]
[]
[]
[]
[]
[]
[]
[]
[]
[]
[]
[]
[]
[]
[]
[]
[]
[]
[]
[]
[]
[]
[]
[]
[]
[]
[]
[]
[]
[]
[]
[]
[]
[]
[]
[]
[]
[]
[]
[]
[]
[]
[]
[]
[]
[]
[]
[]
[]
[]
[]
[]
[]
[]
[]
[]
[]
[]
[]
[]
[]
[]
[]
[]
[]
[]
[]
[]
[]
[]
[]
[]
[]
[]
[]
[]
[]
[]
[]
[]
[]
[]
[]
[]
[]
[]
[]
[]
[]
[]
[]
[]
[]
[]
[]
[]
[]
[]
[]
[]
[]
[]
[]
[]
[]
[]
[]
[]
[]
[]
[]
[]
[]
[]
[]
[]
[]
[]
[]
[]
[]
[null,{"$f":"IF(C526<>\"\",(IFERROR(VLOOKUP($A$5,CodDepOnBase,2,1),\" \")),\"\")","v":""},{"$f":"IFERROR(VLOOKUP(D526,'BD2'!V9:W39,2,0),\"\")","v":""},null,{"$f":"IFERROR(VLOOKUP(F526,CodSubserie2018,2,0),\"\")","v":""}]
[null,"",{"$f":"IFERROR(VLOOKUP(D527,'BD2'!V10:W40,2,0),\"\")","v":""},null,""]
[null,"",{"$f":"IFERROR(VLOOKUP(D528,'BD2'!V11:W41,2,0),\"\")","v":""},null,""]
[null,"",{"$f":"IFERROR(VLOOKUP(D529,'BD2'!V12:W42,2,0),\"\")","v":""},null,""]
[null,"",{"$f":"IFERROR(VLOOKUP(D530,'BD2'!V13:W43,2,0),\"\")","v":""},null,""]
[null,"",{"$f":"IFERROR(VLOOKUP(D531,'BD2'!V14:W44,2,0),\"\")","v":""},null,""]
[null,"",{"$f":"IFERROR(VLOOKUP(D532,'BD2'!V15:W45,2,0),\"\")","v":""},null,""]
[null,"",{"$f":"IFERROR(VLOOKUP(D533,'BD2'!V16:W46,2,0),\"\")","v":""},null,""]
[null,"",{"$f":"IFERROR(VLOOKUP(D534,'BD2'!V17:W47,2,0),\"\")","v":""},null,""]
[null,"",{"$f":"IFERROR(VLOOKUP(D535,'BD2'!V18:W48,2,0),\"\")","v":""},null,""]
[null,"",{"$f":"IFERROR(VLOOKUP(D536,'BD2'!V19:W49,2,0),\"\")","v":""},null,""]
[null,"",{"$f":"IFERROR(VLOOKUP(D537,'BD2'!V20:W50,2,0),\"\")","v":""},null,""]
[null,"",{"$f":"IFERROR(VLOOKUP(D538,'BD2'!V21:W51,2,0),\"\")","v":""},null,""]
[null,"",{"$f":"IFERROR(VLOOKUP(D539,'BD2'!V22:W52,2,0),\"\")","v":""},null,""]
[null,"",{"$f":"IFERROR(VLOOKUP(D540,'BD2'!V23:W53,2,0),\"\")","v":""},null,""]
[null,"",{"$f":"IFERROR(VLOOKUP(D541,'BD2'!V24:W54,2,0),\"\")","v":""},null,""]
[null,"",{"$f":"IFERROR(VLOOKUP(D542,'BD2'!V25:W55,2,0),\"\")","v":""},null,""]
["\n\n",null,null,null,null,null,null,null,null,null,null,null,null,null,null,null,null,null,null,null,null,null,null,null,null,null,null,null,null,null,{"$f":"CONCATENATE(I543,J543,K543)","v":""},{"$f":"CONCATENATE(L543,M543,N543)","v":""}]

{"sheet":"BD2","index":2,"n_rows":210,"n_cols":33,"rows_kept":210,"cut":false,"hidden":true,"merged":[]}
["IdDependenciaVersión","Estado","Descripción-2010","IdDependencia","IdSipe","Versión","Publicado","Año",null,{"$f":"+[1]Hoja2!A1","v":"IdDependenciaVersión"},{"$f":"+[1]Hoja2!B1","v":"Estado"},"Descripción-2018","IdDependencia","Año",null,"Nombre de la Serie:2010","Cód. Serie",null,"Cód. Subserie:","Nombre de la subserie:- 2010","Cód. Subserie:","SERIE -2018","COD_SERIE","NombreSubserie 2018","COD_SERIE","COD_SUBSERIE",null,"Estado","Soporte",null,"Dias","Mes","Años"]
["1080-1","ACTIVO","AUDITORIA INSTITUCIONAL",1080,null,1,"SI",2010,null,{"$f":"+[1]Hoja2!A2","v":"10000-1"},{"$f":"+[1]Hoja2!B2","v":"ACTIVO"},"CENTRO DE EXTENSIÓN ACADÉMICA FACULTAD DE ENFERMERÍA","12311",2018,null,"ACTAS","01","01-01   ACTAS DE ASAMBLEA ",{"$f":"MID(R2,4,2)","v":"01"},"ACTAS DE ASAMBLEA ","01-01","ACCIONES CONSTITUCIONALES","01","01.01 ACCIONES DE CUMPLIMIENTO","01 ",{"$f":"MID(X2,1,6)","v":"01.01 "},null,"Activo","Físico",null,1,"Enero ",1990]
["3145-1","ACTIVO","BIBLIOTECA ESCUELA DE BIBLIOTECOLOGIA",3145,null,1,"SI",2010,null,{"$f":"+[1]Hoja2!A3","v":"10100-1"},{"$f":"+[1]Hoja2!B3","v":"ACTIVO"},"CENTRO DE EXTENSIÓN DE IDIOMAS","13102",2018,null,"ACUERDOS","02","01-02   ACTAS DE COMITÉS","02","ACTAS DE COMITÉS","01-02","ACTAS","02","01.02 ACCIONES DE GRUPO","02 ","01.02 ",null,"Inactivo / Transferencia","Electrónico",null,2,"Febrero",1991]
["8826-1","ACTIVO","CENTRO DE ESTUDIOS DE OPINION CEO",8826,null,1,"SI",2010,null,{"$f":"+[1]Hoja2!A4","v":"10101-1"},{"$f":"+[1]Hoja2!B4","v":"ACTIVO"},"CENTRO DE EXTENSIÓN FACULTAD DE MEDICINA","12402",2018,null,"CALIFICACIONES","03","01-03   ACTAS DE CONSEJO ACADÉMICO","03","ACTAS DE CONSEJO ACADÉMICO","01-03","ACUERDOS DE CONSEJO","03","01.03 ACCIONES DE HABEAS DATA","03 ","01.03 ",null,"Inactivo / Eliminación","Físico y electrónico",null,3,"Marzo",1992]
["8521-1","ACTIVO","CENTRO DE EXTENSION FACULTAD DE COMUNICACIONES",8521,null,1,"SI",2010,null,{"$f":"+[1]Hoja2!A5","v":"10102-1"},{"$f":"+[1]Hoja2!B5","v":"ACTIVO"},"CENTRO DE EXTENSIÓN FACULTAD NACIONAL DE SALUD PUBLICA","11904",2018,null,"CERTIFICADOS","04","01-04   ACTAS DE CONSEJO DE CORPORACION","04","ACTAS DE CONSEJO DE CORPORACION","01-04","CIRCULARES INFORMATIVAS","04","01.04 ACCIONES DE TUTELA","04 ","01.04 ",null,null,null,null,4,"Abril",1993]
["3254-1","ACTIVO","CENTRO DE EXTENSION FACULTAD NACIONAL DE SALUD PUBLICA",3254,null,1,"SI",2010,null,{"$f":"+[1]Hoja2!A6","v":"10200-1"},{"$f":"+[1]Hoja2!B6","v":"ACTIVO"},"CENTRO DE EXTENSIÓN, PROMOCIÓN Y DIVULGACIÓN ARTÍSTICAS Y CULTURAL","11404",2018,null,"COMPROBANTES CONTABLES","05","01-05   ACTAS DE CONSEJO DE ESCUELA","05","ACTAS DE CONSEJO DE ESCUELA","01-05","COMPROBANTES CONTABLES","05","01.05 ACCIONES POPULARES","05 ","01.05 ",null,null,null,null,5,"Mayo",1994]
["1026-1","ACTIVO","CENTRO DE INSTRUMENTACION INTERFACULTADES",1026,null,1,"SI",2010,null,{"$f":"+[1]Hoja2!A7","v":"10201-1"},{"$f":"+[1]Hoja2!B7","v":"ACTIVO"},"CENTRO DE INVESTIGACIÓN FACULTAD DE CIENCIAS EXACTAS Y NATURALES","11505",2018,null,"COMUNICACIONES OFICIALES","06","01-06   ACTAS DE CONSEJO DE FACULTAD","06","ACTAS DE CONSEJO DE FACULTAD","01-06","CONCEPTOS JURIDICOS","06","02.02 ACTAS DE COMITÉ","02 ","02.02 ",null,null,null,null,6,"Junio",1995]
["3310-1","ACTIVO","CENTRO DE INVESTIGACIONES AGRARIAS ",3310,null,1,"SI",2010,null,{"$f":"+[1]Hoja2!A8","v":"10300-1"},{"$f":"+[1]Hoja2!B8","v":"ACTIVO"},"CENTRO DE INVESTIGACIÓN FACULTAD NACIONAL DE SALUD PÚBLICA","11903",2018,null,"CONCEPTOS","07","01-07   ACTAS DE CONSEJO DE INSTITUTO","07","ACTAS DE CONSEJO DE INSTITUTO","01-07","CONCILIACIONES BANCARIAS","07","02.04 ACTAS DE JUNTA","04 ","02.04 ",null,null,null,null,7,"Julio",1996]
["8702-1","ACTIVO","CENTRO DE INVESTIGACIONES CIENCIAS EXACTAS Y NATURALES CIEN",8702,null,1,"SI",2010,null,{"$f":"+[1]Hoja2!A9","v":"10301-1"},{"$f":"+[1]Hoja2!B9","v":"ACTIVO"},"CENTRO DE INVESTIGACIÓN Y EXTENSIÓN ESCUELA DE IDIOMAS","13002",2018,null,"CONTRATOS","08","01-08   ACTAS DE CONSEJO SUPERIOR UNIVERSITARIO","08","ACTAS DE CONSEJO SUPERIOR UNIVERSITARIO","01-08","CONTRATOS","08","02.03 ACTAS DE CONSEJO","03 ","02.03 ",null,null,null,null,8,"Agosto",1997]
["3125-1","ACTIVO","CENTRO DE INVESTIGACIONES ECONOMICAS",3125,null,1,"SI",2010,null,{"$f":"+[1]Hoja2!A10","v":"10302-1"},{"$f":"+[1]Hoja2!B10","v":"ACTIVO"},"CENTRO DE INVESTIGACIONES  FACULTAD DE CIENCIAS AGRARIAS","11604",2018,null,"CONVENIOS","09","01-09   ACTAS DE FONDOS","09","ACTAS DE FONDOS","01-09","CONVENIOS","09","02.01 ACTAS DE ASAMBLEA","01 ","02.01 ",null,null,null,null,9,"Septiembre",1998]
["3137-1","ACTIVO","CENTRO DE INVESTIGACIONES EDUCATIVAS Y PEDAGOGICAS",3137,null,1,"SI",2010,null,{"$f":"+[1]Hoja2!A11","v":"10400-1"},{"$f":"+[1]Hoja2!B11","v":"ACTIVO"},"CENTRO DE INVESTIGACIONES AMBIENTALES Y DE INGENIERÍA FACUTAD DE INGENIERÍA","12310",2018,null,"DECLARACIONES","10","01-10   ACTAS DE GRADO","10","ACTAS DE GRADO","01-10","DECLARACIONES TRIBUTARIAS","10","03.00 ACUERDOS DE CONSEJO","00 ","03.00 ",null,null,null,null,10,"Octubre",1999]
["8721-1","ACTIVO","CENTRO DE INVESTIGACIONES EN ALIMENTACION Y NUTRICION CIAN ",8721,null,1,"SI",2010,null,{"$f":"+[1]Hoja2!A12","v":"10401-1"},{"$f":"+[1]Hoja2!B12","v":"ACTIVO"},"CENTRO DE INVESTIGACIONES EDUCATIVAS Y PEDAGÓGICAS  FACULTAD DE EDUCACIÓN","12106",2018,null,"EVENTOS ","11","01-11   ACTAS DE JUNTAS ","11","ACTAS DE JUNTAS ","01-11","ESTADOS FINANCIEROS","11","04.00 CIRCULARES INFORMATIVAS","00 ","04.00 ",null,null,null,null,11,"Noviembre",2000]
["8713-1","ACTIVO","CENTRO DE INVESTIGACIONES EN CIENCIA DE LA INFORMACION",8713,null,1,"SI",2010,null,{"$f":"+[1]Hoja2!A13","v":"10402-1"},{"$f":"+[1]Hoja2!B13","v":"ACTIVO"},"CENTRO DE INVESTIGACIONES EN CIENCIAS DE LA INFORMACIÓN ESCUELA INTERAMERICANA DE BIBLIOTECOLOGIA","12902",2018,null,"GUIONES ","12","01-12   ACTAS DE JURADOS","12","ACTAS DE JURADOS","01-12","ESTUDIOS TÉCNICOS","12","05.01 COMPROBANTES CONTABLES DE AJUSTE","01 ","05.01 ",null,null,null,null,12,"Diciembre",2001]
["3146-1","ACTIVO","CENTRO DE INVESTIGACIONES EN CIENCIAS DE LA INFORMACION",3146,null,1,"SI",2010,null,{"$f":"+[1]Hoja2!A14","v":"10403-1"},{"$f":"+[1]Hoja2!B14","v":"ACTIVO"},"CENTRO DE INVESTIGACIONES FACULTAD DE CIENCIAS FARMACÉUTICAS Y ALIMENTARIAS","12603",2018,null,"HISTORIAS","13","01-13   ACTAS DE REUNIONES","13","ACTAS DE REUNIONES","01-13","GUIONES MUSEOLÓGICOS","13","05.02 COMPROBANTES CONTABLES DE EGRESO","02 ","05.02 ",null,null,null,null,13,null,2002]
["3162-1","ACTIVO","CENTRO DE INVESTIGACIONES EN CIENCIAS DEL DEPORTE",3162,null,1,"SI",2010,null,{"$f":"+[1]Hoja2!A15","v":"10404-1"},{"$f":"+[1]Hoja2!B15","v":"ACTIVO"},"CENTRO DE INVESTIGACIONES FACULTAD DE DERECHO Y CIENCIAS POLITICAS","11803",2018,null,"INFORMES ","14","02-01   ACUERDOS DE CONSEJO ACADÉMICO ","01","ACUERDOS DE CONSEJO ACADÉMICO ","02-01","HISTORIAS","14","05.03 COMPROBANTES CONTABLES DE INGRESO","03 ","05.03 ",null,null,null,null,14,null,2003]
["3515-1","ACTIVO","CENTRO DE INVESTIGACIONES EN CIENCIAS EXACTAS Y NATURALES",3515,null,1,"SI",2010,null,{"$f":"+[1]Hoja2!A16","v":"10405-1"},{"$f":"+[1]Hoja2!B16","v":"ACTIVO"},"CENTRO DE INVESTIGACIONES FACULTAD DE ENFERMERIA","12204",2018,null,"INSTRUMENTOS DE CONTROL","15","02-02   ACUERDOS DE CONSEJO DE CORPORACIÓN","02","ACUERDOS DE CONSEJO DE CORPORACIÓN","02-02","HISTORIALES","15","06.00 CONCEPTOS JURIDICOS","00 ",{"$f":"MID(X16,1,6)","v":"06.00 "},null,null,null,null,15,null,2004]
["3115-1","ACTIVO","CENTRO DE INVESTIGACIONES EN DERECHO",3115,null,1,"SI",2010,null,{"$f":"+[1]Hoja2!A17","v":"10500-1"},{"$f":"+[1]Hoja2!B17","v":"ACTIVO"},"CENTRO DE INVESTIGACIONES Y CIENCIAS DEL DEPORTE INSTITUTO DE EDUCACIÓN FÍSICA Y DEPORTE","13203",2018,null,"INVENTARIOS","16","02-03   ACUERDOS DE CONSEJO DE ESCUELA","03","ACUERDOS DE CONSEJO DE ESCUELA","02-03","INFORMES","16","07.00 CONCILIACIONES BANCARIAS","00 ","07.00 ",null,null,null,null,16,null,2005]
["3269-1","ACTIVO","CENTRO DE INVESTIGACIONES FACULTAD DE ENFERMERIA",3269,null,1,"SI",2010,null,{"$f":"+[1]Hoja2!A18","v":"10501-1"},{"$f":"+[1]Hoja2!B18","v":"ACTIVO"},"CENTRO DE INVESTIGACIONES Y CONSULTORÍAS FACULTAD DE CIENCIAS ECONÓMICAS","12005",2018,null,"LIBROS CONTABLES","17","02-04   ACUERDOS DE CONSEJO DE FACULTAD","04","ACUERDOS DE CONSEJO DE FACULTAD","02-04","INSTRUMENTOS ARCHIVÍSTICOS","17","08.01 CONTRATOS DE ARRENDAMIENTO","01 ","08.01 ",null,null,null,null,17,null,2006]
["3244-1","ACTIVO","CENTRO DE INVESTIGACIONES FACULTAD DE QUIMICA FARMACEUTICA",3244,null,1,"SI",2010,null,{"$f":"+[1]Hoja2!A19","v":"10502-1"},{"$f":"+[1]Hoja2!B19","v":"ACTIVO"},"CENTRO DE INVESTIGACIONES Y EXTENSIÓN ACADÉMICA FACULTAD DE ODONTOLOGIA","12703",2018,null,"MANUALES ","18","02-05   ACUERDOS DE CONSEJO DE INSTITUTO","05","ACUERDOS DE CONSEJO DE INSTITUTO","02-05","INSTRUMENTOS DE CONTROL","18","08.02 CONTRATOS DE CESIÓN DE DERECHOS","02 ","08.02 ",null,null,null,null,18,null,2007]
["3255-1","ACTIVO","CENTRO DE INVESTIGACIONES FACULTAD NACIONAL DE SALUD PUBLICA",3255,null,1,"SI",2010,null,{"$f":"+[1]Hoja2!A20","v":"10600-1"},{"$f":"+[1]Hoja2!B20","v":"ACTIVO"},"CENTRO DE INVESTIGACIONES Y EXTENSIÓN ESCUELA DE NUTRICIÓN Y DIETÉTICA","12802",2018,null,"PLANES ","19","02-06   ACUERDOS DE CONSEJO SUPERIOR UNIVERSITARIO ","06","ACUERDOS DE CONSEJO SUPERIOR UNIVERSITARIO ","02-06","INVENTARIOS","19","08.03 CONTRATOS DE COMODATO","03 ","08.03 ",null,null,null,null,19,null,2008]
["3228-1","ACTIVO","CENTRO DE INVESTIGACIONES MEDICAS",3228,null,1,"SI",2010,null,{"$f":"+[1]Hoja2!A21","v":"10700-1"},{"$f":"+[1]Hoja2!B21","v":"ACTIVO"},"CENTRO DE INVESTIGACIONES Y EXTENSIÓN FACULTAD DE CIENCIAS SOCIALES Y HUMANAS","11707",2018,null,"PROCESOS","20","03-01   CALIFICACIONES DEFINITIVAS","01","CALIFICACIONES DEFINITIVAS","03-01","LIBROS CONTABLES","20","08.04 CONTRATOS DE COMPRAVENTA","04 ","08.04 ",null,null,null,null,20,null,2009]
["3126-1","ACTIVO","CENTRO DE INVESTIGACIONES Y CONSULTORIAS ADMINISTRATIVAS",3126,null,1,"SI",2010,null,{"$f":"+[1]Hoja2!A22","v":"10701-1"},{"$f":"+[1]Hoja2!B22","v":"ACTIVO"},"CENTRO DE INVESTIGACIONES Y EXTENSIÓN FACULTAD DE COMUNICACIONES","12502",2018,null,"PROGRAMAS","21","03-02   CALIFICACIONES FINALES","02","CALIFICACIONES FINALES","03-02","NÓMINA","22","08.05 CONTRATOS DE CONSULTORÍA","05 ","08.05 ",null,null,null,null,21,null,2010]
["3234-1","ACTIVO","CENTRO DE INVESTIGACIONES Y EXTENSION ACADEMICA DE LA FACULTAD DE ODONTOLOGIA",3234,null,1,"SI",2010,null,{"$f":"+[1]Hoja2!A23","v":"10702-1"},{"$f":"+[1]Hoja2!B23","v":"ACTIVO"},"DECANATURA DE LA FACULTAD DE ARTES","11400",2018,null,"PROYECTOS","22","04-01   CERTIFICADOS CONTABLES ","01","CERTIFICADOS CONTABLES ","04-01","PETICIONES, QUEJAS Y RECLAMOS","23","08.06 CONTRATOS DE DONACIÓN","06 ","08.06 ",null,null,null,null,22,null,2011]
["3282-1","ACTIVO","CENTRO DE INVESTIGACIONES Y EXTENSION DE LA ESCUELA DE BACTERIOLOGIA",3282,null,1,"SI",2010,null,{"$f":"+[1]Hoja2!A24","v":"10703-1"},{"$f":"+[1]Hoja2!B24","v":"ACTIVO"},"DECANATURA DE LA FACULTAD DE CIENCIAS AGRARIAS","11600",2018,null,"RESOLUCIONES","23","04-02   CERTIFICADOS LABORALES","02","CERTIFICADOS LABORALES","04-02","PLANES","24","08.07 CONTRATOS DE EDICIÓN","07 ","08.07 ",null,null,null,null,23,null,2012]
["3247-1","ACTIVO","CENTRO DE INVESTIGACIONES Y EXTENSION DE LA ESCUELA DE NUTRICION Y DIETETICA",3247,null,1,"SI",2010,null,{"$f":"+[1]Hoja2!A25","v":"10800-1"},{"$f":"+[1]Hoja2!B25","v":"ACTIVO"},"DECANATURA DE LA FACULTAD DE CIENCIAS ECONÓMICAS","12000",2018,null,"TÍTULOS ","24","05-01   COMPROBANTES DE EGRESOS","01","COMPROBANTES DE EGRESOS","05-01","PROCESOS","25","08.10 CONTRATOS DE MANDATO","10 ","08.10 ",null,null,null,null,24,null,2013]
["3534-1","ACTIVO","CENTRO DE INVESTIGACIONES Y EXTENSION DE LA FACULTAD DE COMUNICACIONES",3534,null,1,"SI",2010,null,{"$f":"+[1]Hoja2!A26","v":"10900-1"},{"$f":"+[1]Hoja2!B26","v":"ACTIVO"},"DECANATURA DE LA FACULTAD DE CIENCIAS EXACTAS Y NATURALES","11500",2018,null,null,null,"05-02   COMPROBANTES DE INGRESOS","02","COMPROBANTES DE INGRESOS","05-02","PROGRAMAS","26","08.12 CONTRATOS DE PERMUTA","12 ","08.12 ",null,null,null,null,25,null,2014]
["3527-1","ACTIVO","CENTRO DE INVESTIGACIONES Y EXTENSION EN CIENCIAS SOCIALES",3527,null,1,"SI",2010,null,{"$f":"+[1]Hoja2!A27","v":"11000-1"},{"$f":"+[1]Hoja2!B27","v":"ACTIVO"},"DECANATURA DE LA FACULTAD DE CIENCIAS FARMACÉUTICAS Y ALIMENTARIAS","12600",2018,null,null,null,"06-01   ACCIONES DE CUMPLIMIENTO","01","ACCIONES DE CUMPLIMIENTO","06-01","PROYECTOS","27","08.13 CONTRATOS DE PRESTACIÓN DE SERVICIOS","13 ","08.13 ",null,null,null,null,26,null,2015]
["8501-1","ACTIVO","CENTRO DE SERVICIOS TECNICOS CESET",8501,null,1,"SI",2010,null,{"$f":"+[1]Hoja2!A28","v":"11001-1"},{"$f":"+[1]Hoja2!B28","v":"ACTIVO"},"DECANATURA DE LA FACULTAD DE CIENCIAS SOCIALES Y HUMANAS","11700",2018,null,null,null,"06-02   ACCIONES DE TUTELA","02","ACCIONES DE TUTELA","06-02","REGISTROS","28","08.14 CONTRATOS DE PRESTACIÓN DE SERVICIOS PERSONALES","14 ","08.14 ",null,null,null,null,27,null,2016]
["9318-1","ACTIVO","CENTRO INTERNACIONAL DE IDIOMAS Y CULTURAS",9318,null,1,"SI",2010,null,{"$f":"+[1]Hoja2!A29","v":"11002-1"},{"$f":"+[1]Hoja2!B29","v":"ACTIVO"},"DECANATURA DE LA FACULTAD DE COMUNICACIONES","12500",2018,null,null,null,"06-03   CIRCULARES INFORMATIVAS","03","CIRCULARES INFORMATIVAS","06-03","RESOLUCIONES","29","08.15 CONTRATOS DE SEGURO","15 ","08.15 ",null,null,null,null,28,null,2017]
["8703-1","ACTIVO","CENTRO INVESTIGACIONES AMBIENTALES CIA",8703,null,1,"SI",2010,null,{"$f":"+[1]Hoja2!A30","v":"11003-1"},{"$f":"+[1]Hoja2!B30","v":"ACTIVO"},"DECANATURA DE LA FACULTAD DE DERECHO Y CIENCIAS POLÍTICAS","11800",2018,null,null,null,"06-04   COMUNICADOS","04","COMUNICADOS","06-04","SISTEMA DE GESTIÓN DE CALIDAD","30","08.17 CONTRATOS DE TRANSPORTE","17 ","08.17 ",null,null,null,null,29,null,2018]
["8708-1","ACTIVO","CENTRO INVESTIGACIONES SALUD PUBLICA",8708,null,1,"SI",2010,null,{"$f":"+[1]Hoja2!A31","v":"11100-1"},{"$f":"+[1]Hoja2!B31","v":"ACTIVO"},"DECANATURA DE LA FACULTAD DE EDUCACIÓN","12100",2018,null,null,null,"06-05   DERECHOS DE PETICIÓN","05","DERECHOS DE PETICIÓN","06-05","SISTEMA DE GESTIÓN INSTITUCIONAL","31","08.18 CONTRATOS DE UNIÓN TEMPORAL","18 ","08.18 ",null,null,null,null,30,null,2019]
["8716-1","ACTIVO","CENTRO INVESTISTIGACIONES QUIMICA FARMACEUTICA",8716,null,1,"SI",2010,null,{"$f":"+[1]Hoja2!A32","v":"11200-1"},{"$f":"+[1]Hoja2!B32","v":"ACTIVO"},"DECANATURA DE LA FACULTAD DE ENFERMERÍA","12200",2018,null,null,null,"06-06   MEMORANDOS","06","MEMORANDOS","06-06","SISTEMA INTEGRADO DE CONSERVACIÓN","32","08.19 CONTRATOS INTERADMINISTRATIVOS","19 ","08.19 ",null,null,null,null,31,null,2020]
["8312-1","ACTIVO","CENTRO NACER SALUD SEXUAL Y REPRODUCTIVA",8312,null,1,"SI",2010,null,{"$f":"+[1]Hoja2!A33","v":"11201-1"},{"$f":"+[1]Hoja2!B33","v":"ACTIVO"},"DECANATURA DE LA FACULTAD DE INGENIERÍA","12300",2018,null,null,null,"07-01   CONCEPTOS JURÍDICOS","01","CONCEPTOS JURÍDICOS","07-01","TÍTULOS VALORES","33","08.09 CONTRATOS DE LICENCIA PARA EXPLOTACIÓN DE PROPIEDAD INTELECTUAL","09 ","08.09 ",null,null,null,null,null,null,2021]
["2100-1","ACTIVO","CONCILIACION BANCARIA",2100,null,1,"SI",2010,null,{"$f":"+[1]Hoja2!A34","v":"11202-1"},{"$f":"+[1]Hoja2!B34","v":"ACTIVO"},"DECANATURA DE LA FACULTAD DE MEDICINA","12400",2018,null,null,null,"07-02   CONCEPTOS TÉCNICOS","02","CONCEPTOS TÉCNICOS","07-02",null,null,"08.11 CONTRATOS DE OBRA","11 ","08.11 ",null,null,null,null,null,null,2022]
["9900-1","ACTIVO","CONTRATO DE ADMINISTRACION FOREC U DE A",9900,null,1,"SI",2010,null,{"$f":"+[1]Hoja2!A35","v":"11203-1"},{"$f":"+[1]Hoja2!B35","v":"ACTIVO"},"DECANATURA DE LA FACULTAD DE ODONTOLOGÍA","12700",2018,null,null,null,"08-01   CONTRATOS DE ARRENDAMIENTO","01","CONTRATOS DE ARRENDAMIENTO","08-01",null,null,"08.08 CONTRATOS DE ENCARGO FIDUCIARIO","08 ",{"$f":"MID(X35,1,6)","v":"08.08 "},null,null,null,null,null,null,2023]
["9000-1","ACTIVO","COOPERATIVA DE PROFESORES UDEA",9000,null,1,"SI",2010,null,{"$f":"+[1]Hoja2!A36","v":"11300-1"},{"$f":"+[1]Hoja2!B36","v":"ACTIVO"},"DECANATURA DE LA FACULTAD NACIONAL DE SALUD PÚBLICA","11900",2018,null,null,null,"08-02   CONTRATOS DE COMODATO","02","CONTRATOS DE COMODATO","08-02",null,null,"08.16 CONTRATOS DE SUMINISTRO","16 ","08.16 ",null,null,null,null,null,null,2024]
["6450-1","ACTIVO","CORPORACION ACADEMICA AMBIENTAL",6450,null,1,"SI",2010,null,{"$f":"+[1]Hoja2!A37","v":"11400-1"},{"$f":"+[1]Hoja2!B37","v":"ACTIVO"},"DEPARTAMENTO DE  TOXICOLOGÍA Y FARMACOLOGÍA","12407",2018,null,null,null,"08-03   CONTRATOS DE COMPRAVENTA","03","CONTRATOS DE COMPRAVENTA","08-03",null,null,"09.01 CONVENIOS DE ASOCIACIÓN","01 ","09.01 ",null,null,null,null,null,null,2025]
["8840-1","ACTIVO","CORPORACION ACADEMICA DE  ESTUDIOS PATOLOGIAS TROPICALES",8840,null,1,"SI",2010,null,{"$f":"+[1]Hoja2!A38","v":"11401-1"},{"$f":"+[1]Hoja2!B38","v":"ACTIVO"},"DEPARTAMENTO DE ADMISIONES Y REGISTROS","10101",2018,null,null,null,"08-04   CONTRATOS DE CONSULTORIA","04","CONTRATOS DE CONSULTORIA","08-04",null,null,"09.02 CONVENIOS DE COOPERACIÓN","02 ","09.02 ",null,null,null,null,null,null,2026]
["6410-1","ACTIVO","CORPORACION ACADEMICA ESTUDIOS PATOLOGIAS TROPICALES",6410,null,1,"SI",2010,null,{"$f":"+[1]Hoja2!A39","v":"11402-1"},{"$f":"+[1]Hoja2!B39","v":"ACTIVO"},"DEPARTAMENTO DE ALIMENTOS FACULTAD DE CIENCIAS FARMACÉUTICAS Y ALIMENTARIAS","12602",2018,null,null,null,"08-05   CONTRATOS DE DONACIÓN","05","CONTRATOS DE DONACIÓN","08-05",null,null,"09.05 CONVENIOS INTERADMINISTRATIVOS","05 ","09.05 ",null,null,null,null,null,null,2027]
["3520-1","ACTIVO","DECANATO FACULTAD DE CIENCIAS HUMANAS",3520,null,1,"SI",2010,null,{"$f":"+[1]Hoja2!A40","v":"11403-1"},{"$f":"+[1]Hoja2!B40","v":"ACTIVO"},"DEPARTAMENTO DE ANTROPOLOGÍA","11702",2018,null,null,null,"08-06   CONTRATOS DE EDICIÓN","06","CONTRATOS DE EDICIÓN","08-06",null,null,"09.06 CONVENIOS INTERINSTITUCIONALES","06 ","09.06 ",null,null,null,null,null,null,2028]
["3110-1","ACTIVO","DECANATO FACULTAD DE DERECHO Y CIENCIAS POLITICAS",3110,null,1,"SI",2010,null,{"$f":"+[1]Hoja2!A41","v":"11404-1"},{"$f":"+[1]Hoja2!B41","v":"ACTIVO"},"DEPARTAMENTO DE ARTES ESCÉNICAS","11403",2018,null,null,null,"08-07   CONTRATOS DE FINANCIACIÓN ","07","CONTRATOS DE FINANCIACIÓN ","08-07",null,null,"09.03 CONVENIOS DE PASANTÍA","03 ","09.03 ",null,null,null,null,null,null,2029]
["3130-1","ACTIVO","DECANATO FACULTAD DE EDUCACION",3130,null,1,"SI",2010,null,{"$f":"+[1]Hoja2!A42","v":"11500-1"},{"$f":"+[1]Hoja2!B42","v":"ACTIVO"},"DEPARTAMENTO DE ARTES VISUALES","11402",2018,null,null,null,"08-08   CONTRATOS DE LICENCIAMIENTOS DE SOFTWARE","08","CONTRATOS DE LICENCIAMIENTOS DE SOFTWARE","08-08",null,null,"09.04 CONVENIOS DE PRÁCTICA ACADÉMICA","04 ","09.04 "]
["3410-1","ACTIVO","DECANATO FACULTAD DE INGENIERIA",3410,null,1,"SI",2010,null,{"$f":"+[1]Hoja2!A43","v":"11501-1"},{"$f":"+[1]Hoja2!B43","v":"ACTIVO"},"DEPARTAMENTO DE ATENCIÓN ODONTOLÓGICA INTEGRADA","12702",2018,null,null,null,"08-09   CONTRATOS DE MANDATO","09","CONTRATOS DE MANDATO","08-09",null,null,"10.01 DECLARACIONES DE IMPUESTO AL PATRIMONIO","01 ","10.01 "]
["3210-1","ACTIVO","DECANATO FACULTAD DE MEDICINA",3210,null,1,"SI",2010,null,{"$f":"+[1]Hoja2!A44","v":"11502-1"},{"$f":"+[1]Hoja2!B44","v":"ACTIVO"},"DEPARTAMENTO DE BIBLIOTECAS","10102",2018,null,null,null,"08-10   CONTRATOS DE OBRA","10","CONTRATOS DE OBRA","08-10",null,null,"10.02 DECLARACIONES DE IMPUESTO SOBRE LAS VENTAS - IVA","02 ","10.02 "]
["2300-1","ACTIVO","DEPARTAMENTO COMERCIAL",2300,null,1,"SI",2010,null,{"$f":"+[1]Hoja2!A45","v":"11503-1"},{"$f":"+[1]Hoja2!B45","v":"ACTIVO"},"DEPARTAMENTO DE BIOQUÍMICA","12404",2018,null,null,null,"08-11   CONTRATOS DE PRESTACIÓN DE SERVICIOS PERSONALES","11","CONTRATOS DE PRESTACIÓN DE SERVICIOS PERSONALES","08-11",null,null,"10.03 DECLARACIONES DE RETENCIONES EN LA FUENTE","03 ","10.03 "]
["3265-1","ACTIVO","DEPARTAMENTO DE ADMINISTRACION DE SALUD",3265,null,1,"SI",2010,null,{"$f":"+[1]Hoja2!A46","v":"11504-1"},{"$f":"+[1]Hoja2!B46","v":"ACTIVO"},"DEPARTAMENTO DE CIENCIAS ADMINISTRATIVAS","12002",2018,null,null,null,"08-11   CONTRATOS DE PRESTACION DE SERVICIOS PERSONALES","11","CONTRATOS DE PRESTACION DE SERVICIOS PERSONALES","08-11",null,null,"11.00 ESTADOS FINANCIEROS","00 ","11.00 "]
["1011-1","ACTIVO","DEPARTAMENTO DE ADMINISTRACION DOCUMENTAL Y MICROGRAFIA",1011,null,1,"SI",2010,null,{"$f":"+[1]Hoja2!A47","v":"11505-1"},{"$f":"+[1]Hoja2!B47","v":"ACTIVO"},"DEPARTAMENTO DE CIENCIAS BÁSICAS EN SALUD PÚBLICA","11901",2018,null,null,null,"08-12   CONTRATOS DE SEGUROS","12","CONTRATOS DE SEGUROS","08-12",null,null,"12.01 ESTUDIOS TÉCNICOS DE LOS EMPLEOS ADMINISTRATIVOS","01 ","12.01 "]
["3020-1","ACTIVO","DEPARTAMENTO DE ADMISIONES Y REGISTRO",3020,null,1,"SI",2010,null,{"$f":"+[1]Hoja2!A48","v":"11600-1"},{"$f":"+[1]Hoja2!B48","v":"ACTIVO"},"DEPARTAMENTO DE CIENCIAS CONTABLES","12004",2018,null,null,null,"08-13   CONTRATOS DE SUMINISTROS","13","CONTRATOS DE SUMINISTROS","08-13",null,null,"12.02 ESTUDIOS TÉNICOS DE LA ESTRUCTURA ORGANIZACIONAL","02 ","12.02 "]
["3523-1","ACTIVO","DEPARTAMENTO DE ANTROPOLOGIA",3523,null,1,"SI",2010,null,{"$f":"+[1]Hoja2!A49","v":"11601-1"},{"$f":"+[1]Hoja2!B49","v":"ACTIVO"},"DEPARTAMENTO DE CIENCIAS ESPECÍFICAS EN SALUD PÚBLICA","11902",2018,null,null,null,"08-14   CONTRATOS DE TRANSPORTE","14","CONTRATOS DE TRANSPORTE","08-14",null,null,"12.03 ESTUDIOS TÉCNICOS GESTIÓN POR PROCESOS","03 ","12.03 "]
["3231-1","ACTIVO","DEPARTAMENTO DE APOYO ADMINISTRATIVO",3231,null,1,"SI",2010,null,{"$f":"+[1]Hoja2!A50","v":"11602-1"},{"$f":"+[1]Hoja2!B50","v":"ACTIVO"},"DEPARTAMENTO DE CIRUGÍA","12411",2018,null,null,null,"08-15   CONTRATOS INTERADMINISTRATIVOS","15","CONTRATOS INTERADMINISTRATIVOS","08-15",null,null,"13.00 GUIONES MUSEOLÓGICOS","00 ","13.00 "]
["3153-1","ACTIVO","DEPARTAMENTO DE ARTES VISUALES",3153,null,1,"SI",2010,null,{"$f":"+[1]Hoja2!A51","v":"11603-1"},{"$f":"+[1]Hoja2!B51","v":"ACTIVO"},"DEPARTAMENTO DE COMUNICACIÓN SOCIAL","12501",2018,null,null,null,"09-01   CONVENIOS DE ACTIVIDADES DOCENTES DE EXTENSIÓN","01","CONVENIOS DE ACTIVIDADES DOCENTES DE EXTENSIÓN","09-01",null,null,"14.01 HISTORIAS ACADÉMICAS","01 ","14.01 "]
["3261-1","ACTIVO","DEPARTAMENTO DE ATENCION INTEGRAL DE SALUD AL ADULTO",3261,null,1,"SI",2010,null,{"$f":"+[1]Hoja2!A52","v":"11604-1"},{"$f":"+[1]Hoja2!B52","v":"ACTIVO"},"DEPARTAMENTO DE DEPORTE UNIVERSITARIO","13202",2018,null,null,null,"09-01   CONVENIOS DE ACTIVIDADES DOCENTES DE EXTENSION","01","CONVENIOS DE ACTIVIDADES DOCENTES DE EXTENSION","09-01",null,null,"14.02 HISTORIAS CLÍNICAS OCUPACIONALES","02 ","14.02 "]
["3264-1","ACTIVO","DEPARTAMENTO DE ATENCION MATERNO INFANTIL",3264,null,1,"SI",2010,null,{"$f":"+[1]Hoja2!A53","v":"11700-1"},{"$f":"+[1]Hoja2!B53","v":"ACTIVO"},"DEPARTAMENTO DE DEPORTES DIRECCIÓN DE BIENESTAR UNIVERSITARIO","10701",2018,null,null,null,"09-02   CONVENIOS DE INTERCAMBIO","02","CONVENIOS DE INTERCAMBIO","09-02",null,null,"14.06 HISTORIAS LABORALES","06 ","14.06 "]
["3213-1","ACTIVO","DEPARTAMENTO DE BIOQUIMICA",3213,null,1,"SI",2010,null,{"$f":"+[1]Hoja2!A54","v":"11701-1"},{"$f":"+[1]Hoja2!B54","v":"ACTIVO"},"DEPARTAMENTO DE DESARROLLO HUMANO DIRECCIÓN DE BIENESTAR UNIVERSITARIO","10703",2018,null,null,null,"09-03   CONVENIOS DE INVESTIGACIÓN","03","CONVENIOS DE INVESTIGACIÓN","09-03",null,null,"14.05 HISTORIAS DE AFILIADOS","05 ","14.05 "]
["3122-1","ACTIVO","DEPARTAMENTO DE CIENCIAS ADMINISTRATIVAS",3122,null,1,"SI",2010,null,{"$f":"+[1]Hoja2!A55","v":"11702-1"},{"$f":"+[1]Hoja2!B55","v":"ACTIVO"},"DEPARTAMENTO DE ECONOMÍA","12001",2018,null,null,null,"09-04   CONVENIOS DE PASANTIAS","04","CONVENIOS DE PASANTIAS","09-04",null,null,"14.04 HISTORIAS CLÍNICAS VETERINARIAS","04 ","14.04 "]
["3252-1","ACTIVO","DEPARTAMENTO DE CIENCIAS BASICAS",3252,null,1,"SI",2010,null,{"$f":"+[1]Hoja2!A56","v":"11703-1"},{"$f":"+[1]Hoja2!B56","v":"ACTIVO"},"DEPARTAMENTO DE EDUCACIÓN AVANZADA FACULTAD DE EDUCACIÓN","12101",2018,null,null,null,"09-05   CONVENIOS DE PRÁCTICAS ESTUDIANTILES","05","CONVENIOS DE PRÁCTICAS ESTUDIANTILES","09-05",null,null,"14.03 HISTORIAS CLÍNICAS ODONTOLÓGICAS","03 ","14.03 "]
["3124-1","ACTIVO","DEPARTAMENTO DE CIENCIAS CONTABLES",3124,null,1,"SI",2010,null,{"$f":"+[1]Hoja2!A57","v":"11704-1"},{"$f":"+[1]Hoja2!B57","v":"ACTIVO"},"DEPARTAMENTO DE EDUCACIÓN FÍSICA Y EXTENSIÓN","13201",2018,null,null,null,"09-06   CONVENIOS DE UNION TEMPORAL","06","CONVENIOS DE UNION TEMPORAL","09-06",null,null,"15.02 HISTORIALES DE MAQUINARIA Y EQUIPOS","02 ","15.02 "]
["3121-1","ACTIVO","DEPARTAMENTO DE CIENCIAS ECONOMICAS",3121,null,1,"SI",2010,null,{"$f":"+[1]Hoja2!A58","v":"11705-1"},{"$f":"+[1]Hoja2!B58","v":"ACTIVO"},"DEPARTAMENTO DE EDUCACIÓN INFANTIL FACULTAD DE EDUCACIÓN","12102",2018,null,null,null,"09-07   CONVENIOS INTERADMINISTRATIVOS","07","CONVENIOS INTERADMINISTRATIVOS","09-07",null,null,"15.03 HISTORIALES DE VEHÍCULOS","03 ","15.03 "]
["3253-1","ACTIVO","DEPARTAMENTO DE CIENCIAS ESPECIFICAS",3253,null,1,"SI",2010,null,{"$f":"+[1]Hoja2!A59","v":"11706-1"},{"$f":"+[1]Hoja2!B59","v":"ACTIVO"},"DEPARTAMENTO DE EDUCACIÓN MÉDICA","12414",2018,null,null,null,"09-08   CONVENIOS MARCO ","08","CONVENIOS MARCO ","09-08",null,null,"15.01 HISTORIALES DE BIENES INMUEBLES","01 ","15.01 "]
["3218-1","ACTIVO","DEPARTAMENTO DE CIRUGIA",3218,null,1,"SI",2010,null,{"$f":"+[1]Hoja2!A60","v":"11707-1"},{"$f":"+[1]Hoja2!B60","v":"ACTIVO"},"DEPARTAMENTO DE ENSEÑANZA DE LAS CIENCIAS Y ARTE FACULTAD DE EDUCACIÓN","12104",2018,null,null,null,"10-01   DECLARACIONES CONTABLES ","01","DECLARACIONES CONTABLES ","10-01",null,null,"16.02 INFORMES DE GESTIÓN","02 ","16.02 "]
["5300-1","ACTIVO","DEPARTAMENTO DE COMPUTO",5300,null,1,"SI",2010,null,{"$f":"+[1]Hoja2!A61","v":"11800-1"},{"$f":"+[1]Hoja2!B61","v":"ACTIVO"},"DEPARTAMENTO DE ESTADÍSTICAS Y MATEMÁTICAS","12003",2018,null,null,null,"10-02   DECLARACIONES TRIBUTARIAS ","02","DECLARACIONES TRIBUTARIAS ","10-02",null,null,"16.01 INFORMES DE CONTROL Y VIGILANCIA","01 ","16.01 "]
["3532-1","ACTIVO","DEPARTAMENTO DE COMUNICACION SOCIAL",3532,null,1,"SI",2010,null,{"$f":"+[1]Hoja2!A62","v":"11801-1"},{"$f":"+[1]Hoja2!B62","v":"ACTIVO"},"DEPARTAMENTO DE ESTUDIOS BÁSICOS INTEGRADOS FACULTAD DE ODONTOLOGÍA","12701",2018,null,null,null,"11-01   EVENTOS ACADÉMICOS","01","EVENTOS ACADÉMICOS","11-01",null,null,"17.01 BANCO TERMINOLÓGICO DE SERIES Y SUBSERIES DOCUMENTALES","01 ","17.01 "]
["3163-1","ACTIVO","DEPARTAMENTO DE DEPORTE UNIVERSITARIO",3163,null,1,"SI",2010,null,{"$f":"+[1]Hoja2!A63","v":"11802-1"},{"$f":"+[1]Hoja2!B63","v":"ACTIVO"},"DEPARTAMENTO DE EXTENSIÓN Y EDUCACIÓN A DISTANCIA FACULTAD DE EDUCACIÓN","12105",2018,null,null,null,"11-02   EVENTOS CONMEMORATIVOS","02","EVENTOS CONMEMORATIVOS","11-02",null,null,"17.02 TABLAS DE CONTROL DE ACCESO","02 ","17.02 "]
["3161-1","ACTIVO","DEPARTAMENTO DE EDUCACION FISICA Y EXTENSION",3161,null,1,"SI",2010,null,{"$f":"+[1]Hoja2!A64","v":"11803-1"},{"$f":"+[1]Hoja2!B64","v":"ACTIVO"},"DEPARTAMENTO DE EXTENSIÓN Y POSGRADO FACULTAD DE ENFERMERÍA","12203",2018,null,null,null,"11-03   EVENTOS CULTURALES","03","EVENTOS CULTURALES","11-03",null,null,"17.03 TABLAS DE RETENCIÓN DOCUMENTAL","03 ","17.03 "]
["3224-1","ACTIVO","DEPARTAMENTO DE EDUCACION MEDICA",3224,null,1,"SI",2010,null,{"$f":"+[1]Hoja2!A65","v":"11900-1"},{"$f":"+[1]Hoja2!B65","v":"ACTIVO"},"DEPARTAMENTO DE FARMACIA FACULTAD DE CIENCIAS FARMACÉUTICAS Y ALIMENTARIAS","12601",2018,null,null,null,"11-04   EVENTOS DEPORTIVOS","04","EVENTOS DEPORTIVOS","11-04",null,null,"17.04 TABLAS DE VALORACIÓN DOCUMENTAL","04 ","17.04 "]
["3134-1","ACTIVO","DEPARTAMENTO DE ENSENANZA DE LAS CIENCIAS Y ARTES",3134,null,1,"SI",2010,null,{"$f":"+[1]Hoja2!A66","v":"11901-1"},{"$f":"+[1]Hoja2!B66","v":"ACTIVO"},"DEPARTAMENTO DE FISIOLOGÍA","12403",2018,null,null,null,"12-01   GUIONES DE COMERCIALES",{"$f":"MID(R66,4,2)","v":"01"},"GUIONES DE COMERCIALES","12-01",null,null,"18.01 ACTAS DE ANULACIÓN DE DIPLOMAS","01 ","18.01 "]
["3151-1","ACTIVO","DEPARTAMENTO DE EXTENSION Y DIVULGACION ARTISTICA",3151,null,1,"SI",2010,null,{"$f":"+[1]Hoja2!A67","v":"11902-1"},{"$f":"+[1]Hoja2!B67","v":"ACTIVO"},"DEPARTAMENTO DE FORMACIÓN ACADÉMICA  ESCUELA DE IDIOMAS","13101",2018,null,null,null,"12-02   GUIONES DE OBRAS DE ARTE","02","GUIONES DE OBRAS DE ARTE","12-02",null,null,"18.03 INSTRUMENTOS DE CONTROL DE COMUNICACIONES OFICIALES","03 ",{"$f":"MID(X67,1,6)","v":"18.03 "}]
["3135-1","ACTIVO","DEPARTAMENTO DE EXTENSION Y EDUCACION A DISTANCIA",3135,null,1,"SI",2010,null,{"$f":"+[1]Hoja2!A68","v":"11903-1"},{"$f":"+[1]Hoja2!B68","v":"ACTIVO"},"DEPARTAMENTO DE FORMACIÓN ACADÉMICA  ESCUELA DE MICROBIOLOGÍA","13001",2018,null,null,null,"12-03   GUIONES DE PROGRAMACIÓN","03","GUIONES DE PROGRAMACIÓN","12-03",null,null,"18.02 INSTRUMENTOS DE CONTROL DE CONSECUTIVOS DE ACTOS ADMINISTRATIVOS","02 ","18.02 "]
["3263-1","ACTIVO","DEPARTAMENTO DE EXTENSION Y POSGRADOS DE ENFERMERIA",3263,null,1,"SI",2010,null,{"$f":"+[1]Hoja2!A69","v":"11904-1"},{"$f":"+[1]Hoja2!B69","v":"ACTIVO"},"DEPARTAMENTO DE FORMACIÓN ACADÉMICA DE HACIENDAS FACULTAD DE CIENCIAS AGRARIAS","11603",2018,null,null,null,"12-04   GUIONES DE SERIES AUDIOVISUALES","04","GUIONES DE SERIES AUDIOVISUALES","12-04",null,null,"19.02 INVENTARIOS DE SEMOVIENTES","02 ","19.02 "]
["3241-1","ACTIVO","DEPARTAMENTO DE FARMACIA",3241,null,1,"SI",2010,null,{"$f":"+[1]Hoja2!A70","v":"12000-1"},{"$f":"+[1]Hoja2!B70","v":"ACTIVO"},"DEPARTAMENTO DE FORMACIÓN ACADÉMICA ESCUELA DE NUTRICIÓN Y DIETÉTICA","12801",2018,null,null,null,"12-05   GUIONES DE VIDEOS DOCUMENTALES","05","GUIONES DE VIDEOS DOCUMENTALES","12-05",null,null,"19.01 INVENTARIOS DE BIENES MUEBLES INSTITUCIONALES","01 ","19.01 "]
["3214-1","ACTIVO","DEPARTAMENTO DE FARMACOLOGIA Y TOXICOLOGIA",3214,null,1,"SI",2010,null,{"$f":"+[1]Hoja2!A71","v":"12001-1"},{"$f":"+[1]Hoja2!B71","v":"ACTIVO"},"DEPARTAMENTO DE FORMACIÓN ACADÉMICA ESCUELA INTERAMERICANA DE BIBLIOTECOLOGÍA","12901",2018,null,null,null,"13-01   HISTORIAS ACADÉMICAS","01","HISTORIAS ACADÉMICAS","13-01",null,null,"19.03 INVENTARIOS DOCUMENTALES","03 ","19.03 "]
["3212-1","ACTIVO","DEPARTAMENTO DE FISIOLOGIA",3212,null,1,"SI",2010,null,{"$f":"+[1]Hoja2!A72","v":"12002-1"},{"$f":"+[1]Hoja2!B72","v":"ACTIVO"},"DEPARTAMENTO DE FORMACIÓN ACADÉMICA INSTITUTO DE FILOSOFÍA","13501",2018,null,null,null,"13-02   HISTORIAS CLÍNICAS ","02","HISTORIAS CLÍNICAS ","13-02",null,null,"20.01 LIBROS CONTABLES AUXILIARES","01 ","20.01 "]
["6310-1","ACTIVO","DEPARTAMENTO DE FORMACION ACADEMICA",6310,null,1,"SI",2010,null,{"$f":"+[1]Hoja2!A73","v":"12003-1"},{"$f":"+[1]Hoja2!B73","v":"ACTIVO"},"DEPARTAMENTO DE FORMACIÓN BÁSICA PROFESIONAL FACULTAD DE ENFERMERÍA","12201",2018,null,null,null,"13-03   HISTORIAS CLINICAS DE RESTAURACION","03","HISTORIAS CLINICAS DE RESTAURACION","13-03",null,null,"20.02 LIBROS DE BALANCE GENERAL","02 ","20.02 "]
["3281-1","ACTIVO","DEPARTAMENTO DE FORMACION ACADEMICA DE BACTERIOLOGIA",3281,null,1,"SI",2010,null,{"$f":"+[1]Hoja2!A74","v":"12004-1"},{"$f":"+[1]Hoja2!B74","v":"ACTIVO"},"DEPARTAMENTO DE FORMACIÓN PROFESIONAL FACULTAD DE ENFERMERÍA","12202",2018,null,null,null,"13-04   HISTORIAS DE COMISIONES DE ESTUDIO","04","HISTORIAS DE COMISIONES DE ESTUDIO","13-04",null,null,"20.03 LIBROS MAYORES","03 ","20.03 "]
["3305-1","ACTIVO","DEPARTAMENTO DE FORMACION ACADEMICA DE HACIENDAS",3305,null,1,"SI",2010,null,{"$f":"+[1]Hoja2!A75","v":"12005-1"},{"$f":"+[1]Hoja2!B75","v":"ACTIVO"},"DEPARTAMENTO DE FORMACIÓN UNIVERSITARIA FACULTAD DE DERECHO Y CIENCIAS POLÍTICAS","11801",2018,null,null,null,"13-05   HISTORIAS LABORALES","05","HISTORIAS LABORALES","13-05",null,null,"22.00 NÓMINA","00 ","22.00 "]
["3541-1","ACTIVO","DEPARTAMENTO DE FORMACION ACADEMICA DE IDIOMAS",3541,null,1,"SI",2010,null,{"$f":"+[1]Hoja2!A76","v":"12006-1"},{"$f":"+[1]Hoja2!B76","v":"ACTIVO"},"DEPARTAMENTO DE HISTORIA","11701",2018,null,null,null,"14-01   INFORMES A ENTIDADES DE CONTROL","01","INFORMES A ENTIDADES DE CONTROL","14-01",null,null,"23.00 PETICIONES, QUEJAS Y RECLAMOS","00 ","23.00 "]
["3246-1","ACTIVO","DEPARTAMENTO DE FORMACION ACADEMICA DE NUTRICION Y DIETETICA",3246,null,1,"SI",2010,null,{"$f":"+[1]Hoja2!A77","v":"12100-1"},{"$f":"+[1]Hoja2!B77","v":"ACTIVO"},"DEPARTAMENTO DE INGENIERÍA DE SISTEMAS","12307",2018,null,null,null,"14-02   INFORMES CONTABLES","02","INFORMES CONTABLES","14-02",null,null,"24.05 PLANES DE AUDITORÍA","05 ","24.05 "]
["3262-1","ACTIVO","DEPARTAMENTO DE FORMACION PROFESIONAL ENFERMERIA",3262,null,1,"SI",2010,null,{"$f":"+[1]Hoja2!A78","v":"12101-1"},{"$f":"+[1]Hoja2!B78","v":"ACTIVO"},"DEPARTAMENTO DE INGENIERÍA ELÉCTRICA","12306",2018,null,null,null,"14-03   INFORMES DE GESTIÓN","03","INFORMES DE GESTIÓN","14-03",null,null,"24.09 PLANES DE GESTIÓN DE RESIDUOS","09 ","24.09 "]
["3111-1","ACTIVO","DEPARTAMENTO DE FORMACION UNIVERSITARIA",3111,null,1,"SI",2010,null,{"$f":"+[1]Hoja2!A79","v":"12102-1"},{"$f":"+[1]Hoja2!B79","v":"ACTIVO"},"DEPARTAMENTO DE INGENIERÍA ELECTRÓNICA","12308",2018,null,null,null,"14-04   INFORMES ESTADÍSTICOS","04","INFORMES ESTADÍSTICOS","14-04",null,null,"24.03 PLANES ANUALES DE INCENTIVOS INSTITUCIONALES","03 ","24.03 "]
["3522-1","ACTIVO","DEPARTAMENTO DE HISTORIA",3522,null,1,"SI",2010,null,{"$f":"+[1]Hoja2!A80","v":"12103-1"},{"$f":"+[1]Hoja2!B80","v":"ACTIVO"},"DEPARTAMENTO DE INGENIERÍA INDUSTRIAL","12301",2018,null,null,null,"14-05   INFORMES FINANCIEROS","05","INFORMES FINANCIEROS","14-05",null,null,"24.11 PLANES DE PREVENCIÓN, PREPARACIÓN Y RESPUESTAS ANTE EMERGENCIAS","11 ","24.11 "]
["1012-1","ACTIVO","DEPARTAMENTO DE INFORMACION Y PRENSA",1012,null,1,"SI",2010,null,{"$f":"+[1]Hoja2!A81","v":"12104-1"},{"$f":"+[1]Hoja2!B81","v":"ACTIVO"},"DEPARTAMENTO DE INGENIERÍA MECÁNICA","12305",2018,null,null,null,"14-06   INFORMES LABORALES ","06","INFORMES LABORALES ","14-06",null,null,"24.12 PLANES DE TRABAJO ANUAL DEL SISTEMA DE GESTIÓN DE SEGURIDAD Y SALUD EN EL TRABAJO","12 ","24.12 "]
["3417-1","ACTIVO","DEPARTAMENTO DE INGENIERIA DE SISTEMAS",3417,null,1,"SI",2010,null,{"$f":"+[1]Hoja2!A82","v":"12105-1"},{"$f":"+[1]Hoja2!B82","v":"ACTIVO"},"DEPARTAMENTO DE INGENIERÍA METALÚRGICA","12302",2018,null,null,null,"14-13   INFORMES DE GESTIÓN","13","INFORMES DE GESTIÓN","14-13",null,null,"24.15 PLANES INSTITUCIONALES DE CAPACITACIÓN","15 ","24.15 "]
["3416-1","ACTIVO","DEPARTAMENTO DE INGENIERIA ELECTRICA",3416,null,1,"SI",2010,null,{"$f":"+[1]Hoja2!A83","v":"12106-1"},{"$f":"+[1]Hoja2!B83","v":"ACTIVO"},"DEPARTAMENTO DE INGENIERÍA QUÍMICA","12303",2018,null,null,null,"15-01   BASES DE DATOS","01","BASES DE DATOS","15-01",null,null,"24.13 PLANES ESTRATÉGICOS DE SEGURIDAD VIAL","13 ","24.13 "]
["3418-1","ACTIVO","DEPARTAMENTO DE INGENIERIA ELECTRONICA",3418,null,1,"SI",2010,null,{"$f":"+[1]Hoja2!A84","v":"12200-1"},{"$f":"+[1]Hoja2!B84","v":"ACTIVO"},"DEPARTAMENTO DE INGENIERÍA SANITARIA Y AMBIENTAL","12304",2018,null,null,null,"15-02   LISTADOS ","02","LISTADOS ","15-02",null,null,"24.02 PLANES ANUALES DE ADQUISICIONES","02 ","24.02 "]
["3411-1","ACTIVO","DEPARTAMENTO DE INGENIERIA INDUSTRIAL",3411,null,1,"SI",2010,null,{"$f":"+[1]Hoja2!A85","v":"12201-1"},{"$f":"+[1]Hoja2!B85","v":"ACTIVO"},"DEPARTAMENTO DE MEDICINA FÍSICA Y REHABILITACIÓN","12413",2018,null,null,null,"15-03   REGISTROS ","03","REGISTROS ","15-03",null,null,"24.07 PLANES DE CONSERVACIÓN DOCUMENTAL","07 ","24.07 "]
["3415-1","ACTIVO","DEPARTAMENTO DE INGENIERIA MECANICA",3415,null,1,"SI",2010,null,{"$f":"+[1]Hoja2!A86","v":"12202-1"},{"$f":"+[1]Hoja2!B86","v":"ACTIVO"},"DEPARTAMENTO DE MEDICINA INTERNA","12406",2018,null,null,null,"15-04   REGISTROS DE NOTIFICACIÓN","04","REGISTROS DE NOTIFICACIÓN","15-04",null,null,"24.10 PLANES DE PRESERVACIÓN DIGITAL A LARGO PLAZO","10 ","24.10 "]
["3412-1","ACTIVO","DEPARTAMENTO DE INGENIERIA METALURGICA",3412,null,1,"SI",2010,null,{"$f":"+[1]Hoja2!A87","v":"12203-1"},{"$f":"+[1]Hoja2!B87","v":"ACTIVO"},"DEPARTAMENTO DE MEDICINA PREVENTIVA Y SALUD PÚBLICA","12408",2018,null,null,null,"15-05   REPORTES ","05","REPORTES ","15-05",null,null,"24.14 PLANES INSTITUCIONALES DE ARCHIVO","14 ","24.14 "]
["3413-1","ACTIVO","DEPARTAMENTO DE INGENIERIA QUIMICA",3413,null,1,"SI",2010,null,{"$f":"+[1]Hoja2!A88","v":"12204-1"},{"$f":"+[1]Hoja2!B88","v":"ACTIVO"},"DEPARTAMENTO DE MICROBIOLOGÍA Y PARASITOLOGÍA","12415",2018,null,null,null,"16-01   INVENTARIOS BIENES INMUEBLES","01","INVENTARIOS BIENES INMUEBLES","16-01",null,null,"24.01 PLANES ANTICORRUPCIÓN Y DE ATENCIÓN AL CIUDADANO","01 ","24.01 "]
["3414-1","ACTIVO","DEPARTAMENTO DE INGENIERIA SANITARIA Y AMBIENTAL",3414,null,1,"SI",2010,null,{"$f":"+[1]Hoja2!A89","v":"12300-1"},{"$f":"+[1]Hoja2!B89","v":"ACTIVO"},"DEPARTAMENTO DE MORFOLOGÍA","12417",2018,null,null,null,"16-02   INVENTARIOS BIENES MUEBLES","02","INVENTARIOS BIENES MUEBLES","16-02",null,null,"24.04 PLANES DE ACCIÓN INSTITUCIONAL","04 ","24.04 "]
["3531-1","ACTIVO","DEPARTAMENTO DE LINGUISTICA Y LITERATURA",3531,null,1,"SI",2010,null,{"$f":"+[1]Hoja2!A90","v":"12301-1"},{"$f":"+[1]Hoja2!B90","v":"ACTIVO"},"DEPARTAMENTO DE MÚSICA FACULTAD DE ARTES","11401",2018,null,null,null,"16-03   INVENTARIOS SEMOVIENTES","03","INVENTARIOS SEMOVIENTES","16-03",null,null,"24.08 PLANES DE DESARROLLO INSTITUCIONAL","08 ","24.08 "]
["3511-1","ACTIVO","DEPARTAMENTO DE MATEMATICAS",3511,null,1,"SI",2010,null,{"$f":"+[1]Hoja2!A91","v":"12302-1"},{"$f":"+[1]Hoja2!B91","v":"ACTIVO"},"DEPARTAMENTO DE OBSTETRICIA Y GINECOLOGÍA","12410",2018,null,null,null,"17-01   LIBRO CAJA DIARIO","01","LIBRO CAJA DIARIO","17-01",null,null,"24.06 PLANES DE COMUNICACIONES","06 ","24.06 "]
["3217-1","ACTIVO","DEPARTAMENTO DE MEDICINA INTERNA",3217,null,1,"SI",2010,null,{"$f":"+[1]Hoja2!A92","v":"12303-1"},{"$f":"+[1]Hoja2!B92","v":"ACTIVO"},"DEPARTAMENTO DE PATOLOGÍA","12409",2018,null,null,null,"17-02   LIBRO DE BALANCE GENERAL","02","LIBRO DE BALANCE GENERAL","17-02",null,null,"25.02 PROCESOS CONTRACTUALES DECLARADOS DESIERTOS O NO ADJUDICADOS","02 ","25.02 "]
["3230-1","ACTIVO","DEPARTAMENTO DE MEDICINA ORAL",3230,null,1,"SI",2010,null,{"$f":"+[1]Hoja2!A93","v":"12304-1"},{"$f":"+[1]Hoja2!B93","v":"ACTIVO"},"DEPARTAMENTO DE PEDAGOGÍA FACULTAD DE EDUCACIÓN","12103",2018,null,null,null,"17-03   LIBRO MAYOR ","03","LIBRO MAYOR ","17-03",null,null,"25.06 PROCESOS DE SELECCIÓN","06 ","25.06 "]
["3223-1","ACTIVO","DEPARTAMENTO DE MEDICINA PREVENTIVA Y SALUD PUBLICA",3223,null,1,"SI",2010,null,{"$f":"+[1]Hoja2!A94","v":"12305-1"},{"$f":"+[1]Hoja2!B94","v":"ACTIVO"},"DEPARTAMENTO DE PEDIATRÍA Y PUERICULTURA","12416",2018,null,null,null,"17-04   LIBRO MAYOR AUXILIAR","04","LIBRO MAYOR AUXILIAR","17-04",null,null,"25.04 PROCESOS DE CONVOCATORIA","04 ","25.04 "]
["3216-1","ACTIVO","DEPARTAMENTO DE MICROBIOLOGIA Y PARASITOLOGIA",3216,null,1,"SI",2010,null,{"$f":"+[1]Hoja2!A95","v":"12306-1"},{"$f":"+[1]Hoja2!B95","v":"ACTIVO"},"DEPARTAMENTO DE PRÁCTICAS FACULTAD DE DERECHO Y CIENCIAS POLÍTICAS","11802",2018,null,null,null,"18-01   MANUALES DE FUNCIONES","01","MANUALES DE FUNCIONES","18-01",null,null,"25.07 PROCESOS DISCIPLINARIOS","07 ","25.07 "]
["3211-1","ACTIVO","DEPARTAMENTO DE MORFOLOGIA",3211,null,1,"SI",2010,null,{"$f":"+[1]Hoja2!A96","v":"12307-1"},{"$f":"+[1]Hoja2!B96","v":"ACTIVO"},"DEPARTAMENTO DE PROMOCIÓN DE LA SALUD Y PREVENCIÓN DE LA ENFERMEDAD ","10702",2018,null,null,null,"18-02   MANUALES DE IDENTIDAD","02","MANUALES DE IDENTIDAD","18-02",null,null,"25.05 PROCESOS DE ELECCIÓN","05 ","25.05 "]
["3152-1","ACTIVO","DEPARTAMENTO DE MUSICA Y ARTES REPRESENTATIVAS",3152,null,1,"SI",2010,null,{"$f":"+[1]Hoja2!A97","v":"12308-1"},{"$f":"+[1]Hoja2!B97","v":"ACTIVO"},"DEPARTAMENTO DE PSICOANÁLISIS","11706",2018,null,null,null,"18-03   MANUALES DE OPERACIÓN","03","MANUALES DE OPERACIÓN","18-03",null,null,"25.08 PROCESOS JURÍDICOS","08 ","25.08 "]
["3219-1","ACTIVO","DEPARTAMENTO DE OBSTETRICIA Y GINECOLOGIA",3219,null,1,"SI",2010,null,{"$f":"+[1]Hoja2!A98","v":"12309-1"},{"$f":"+[1]Hoja2!B98","v":"ACTIVO"},"DEPARTAMENTO DE PSICOLOGÍA","11703",2018,null,null,null,"18-04   MANUALES DE PROCEDIMIENTOS","04","MANUALES DE PROCEDIMIENTOS","18-04",null,null,"25.03 PROCESOS DE AUTOEVALUACIÓN Y ACREDITACIÓN","03 ","25.03 "]
["5200-1","ACTIVO","DEPARTAMENTO DE ORGANIZACION Y SISTEMAS",5200,null,1,"SI",2010,null,{"$f":"+[1]Hoja2!A99","v":"12310-1"},{"$f":"+[1]Hoja2!B99","v":"ACTIVO"},"DEPARTAMENTO DE PSIQUIATRÍA Y CIENCIAS DEL COMPORTAMIENTO HUMANO","12412",2018,null,null,null,"19-01   PLANES DE ACCIÓN","01","PLANES DE ACCIÓN","19-01",null,null,"25.01 PROCESOS CONCILIATORIOS","01 ",{"$f":"MID(X99,1,6)","v":"25.01 "}]
["3215-1","ACTIVO","DEPARTAMENTO DE PATOLOGIA",3215,null,1,"SI",2010,null,{"$f":"+[1]Hoja2!A100","v":"12311-1"},{"$f":"+[1]Hoja2!B100","v":"ACTIVO"},"DEPARTAMENTO DE PUBLICACIONES","10502",2018,null,null,null,"19-02   PLANES DE DESARROLLO","02","PLANES DE DESARROLLO","19-02",null,null,"26.04 PROGRAMAS CULTURALES","04 ","26.04 "]
["3133-1","ACTIVO","DEPARTAMENTO DE PEDAGOGIA",3133,null,1,"SI",2010,null,{"$f":"+[1]Hoja2!A101","v":"12400-1"},{"$f":"+[1]Hoja2!B101","v":"ACTIVO"},"DEPARTAMENTO DE RADIOLOGÍA Y RADIOTERAPIA","12405",2018,null,null,null,"19-03   PLANES DE ESTUDIO","03","PLANES DE ESTUDIO","19-03",null,null,"26.02 PROGRAMAS ANUALES DE AUDITORIA","02 ","26.02 "]
["3220-1","ACTIVO","DEPARTAMENTO DE PEDIATRIA",3220,null,1,"SI",2010,null,{"$f":"+[1]Hoja2!A102","v":"12401-1"},{"$f":"+[1]Hoja2!B102","v":"ACTIVO"},"DEPARTAMENTO DE RECURSOS DE APOYO E INFORMÁTICA FACULTAD DE INGENIERÍA","12309",2018,null,null,null,"19-04   PLANES DE TRABAJO DEL DOCENTE","04","PLANES DE TRABAJO DEL DOCENTE","19-04",null,null,"26.06 PROGRAMAS DE CAPACITACIÓN","06 ","26.06 "]
["5100-1","ACTIVO","DEPARTAMENTO DE PLANEACION ACADEMICA E INVESTIGACIONES",5100,null,1,"SI",2010,null,{"$f":"+[1]Hoja2!A103","v":"12402-1"},{"$f":"+[1]Hoja2!B103","v":"ACTIVO"},"DEPARTAMENTO DE SOCIOLOGÍA","11704",2018,null,null,null,"20-01   PROCESOS DE ACREDITACIÓN Y AUTOEVALUACIÓN","01","PROCESOS DE ACREDITACIÓN Y AUTOEVALUACIÓN","20-01",null,null,"26.11 PROGRAMAS DEL SISTEMA DE GESTIÓN DE SEGURIDAD Y SALUD EN EL TRABAJO","11 ","26.11 "]
["3302-1","ACTIVO","DEPARTAMENTO DE PRODUCCION AGROPECUARIA",3302,null,1,"SI",2010,null,{"$f":"+[1]Hoja2!A104","v":"12403-1"},{"$f":"+[1]Hoja2!B104","v":"ACTIVO"},"DEPARTAMENTO DE TRABAJO SOCIAL","11705",2018,null,null,null,"20-02   PROCESOS DE BONO PENSIONAL","02","PROCESOS DE BONO PENSIONAL","20-02",null,null,"26.10 PROGRAMAS DE PROMOCIÓN Y PREVENCIÓN EN SALUD","10 ","26.10 "]
["4200-1","ACTIVO","DEPARTAMENTO DE PROMCION DE SALUD Y PREVENCION DE LA ENFERMEDAD",4200,null,1,"SI",2010,null,{"$f":"+[1]Hoja2!A105","v":"12404-1"},{"$f":"+[1]Hoja2!B105","v":"ACTIVO"},"DIRECCIÓN DE BIENESTAR UNIVERSITARIO","10700",2018,null,null,null,"20-02   PROGRAMAS DE ACREDITACIÓN Y AUTOEVALUACIÓN","02","PROGRAMAS DE ACREDITACIÓN Y AUTOEVALUACIÓN","20-02",null,null,"26.09 PROGRAMAS DE GESTIÓN DOCUMENTAL","09 ","26.09 "]
["1021-1","ACTIVO","DEPARTAMENTO DE PUBLICACIONES",1021,null,1,"SI",2010,null,{"$f":"+[1]Hoja2!A106","v":"12405-1"},{"$f":"+[1]Hoja2!B106","v":"ACTIVO"},"DIRECCIÓN DE COMUNICACIONES","11200",2018,null,null,null,"20-03   PROCESOS DE CARRERA ADMINISTRATIVA","03","PROCESOS DE CARRERA ADMINISTRATIVA","20-03",null,null,"26.05 PROGRAMAS DE BIENESTAR","05 ","26.05 "]
["3419-1","ACTIVO","DEPARTAMENTO DE RECURSOS DE APOYO E INFORMATICA",3419,null,1,"SI",2010,null,{"$f":"+[1]Hoja2!A107","v":"12406-1"},{"$f":"+[1]Hoja2!B107","v":"ACTIVO"},"DIRECCIÓN DE JURÍDICA","11100",2018,null,null,null,"20-04   PROCESOS DE COMPRAS POR IMPORTACIÓN","04","PROCESOS DE COMPRAS POR IMPORTACIÓN","20-04",null,null,"26.03 PROGRAMAS AUDIOVISUALES","03 ","26.03 "]
["2400-1","ACTIVO","DEPARTAMENTO DE RELACIONES LABORALES",2400,null,1,"SI",2010,null,{"$f":"+[1]Hoja2!A108","v":"12407-1"},{"$f":"+[1]Hoja2!B108","v":"ACTIVO"},"DIRECCIÓN DE LA CORPORACIÓN ACADÉMICA AMBIENTAL","13800",2018,null,null,null,"20-05   PROCESOS DE CONVOCATORIA ","05","PROCESOS DE CONVOCATORIA ","20-05",null,null,"26.12 PROGRAMAS RADIALES","12 ","26.12 "]
["1027-1","ACTIVO","DEPARTAMENTO DE SERVICIOS AUDIOVISUALES",1027,null,1,"SI",2010,null,{"$f":"+[1]Hoja2!A109","v":"12408-1"},{"$f":"+[1]Hoja2!B109","v":"ACTIVO"},"DIRECCIÓN DE LA CORPORACIÓN ACADÉMICA PARA EL ESTUDIO DE PATOLOGÍAS TROPICALES","13700",2018,null,null,null,"20-06   PROCESOS DE LICITACIONES","06","PROCESOS DE LICITACIONES","20-06",null,null,"26.01 PROGRAMAS ACADÉMICOS","01 ","26.01 "]
["3524-1","ACTIVO","DEPARTAMENTO DE SICOLOGIA",3524,null,1,"SI",2010,null,{"$f":"+[1]Hoja2!A110","v":"12409-1"},{"$f":"+[1]Hoja2!B110","v":"ACTIVO"},"DIRECCIÓN DE LA CORPORACIÓN DE CIENCIAS BÁSICAS BIOMÉDICAS","13600",2018,null,null,null,"20-07   PROCESOS DE PROYECTOS POR ESTAMPILLA","07","PROCESOS DE PROYECTOS POR ESTAMPILLA","20-07",null,null,"26.07 PROGRAMAS DE CURSOS","07 ","26.07 "]
["3525-1","ACTIVO","DEPARTAMENTO DE SOCIOLOGIA",3525,null,1,"SI",2010,null,{"$f":"+[1]Hoja2!A111","v":"12410-1"},{"$f":"+[1]Hoja2!B111","v":"ACTIVO"},"DIRECCIÓN DE LA ESCUELA DE IDIOMAS","13100",2018,null,null,null,"20-08   PROCESOS DISCIPLINARIOS","08","PROCESOS DISCIPLINARIOS","20-08",null,null,"26.08 PROGRAMAS DE EDUCACIÓN NO FORMAL","08 ","26.08 "]
["2500-1","ACTIVO","DEPARTAMENTO DE SOSTENIMIENTO",2500,null,1,"SI",2010,null,{"$f":"+[1]Hoja2!A112","v":"12411-1"},{"$f":"+[1]Hoja2!B112","v":"ACTIVO"},"DIRECCIÓN DE LA ESCUELA DE MICROBIOLOGÍA","13000",2018,null,null,null,"20-09   PROCESOS JURÍDICOS","09","PROCESOS JURÍDICOS","20-09",null,null,"27.03 PROYECTOS DE INVERSIÓN","03 ","27.03 "]
["3154-1","ACTIVO","DEPARTAMENTO DE TEATRO",3154,null,1,"SI",2010,null,{"$f":"+[1]Hoja2!A113","v":"12412-1"},{"$f":"+[1]Hoja2!B113","v":"ACTIVO"},"DIRECCIÓN DE LA ESCUELA DE NUTRICIÓN Y DIETÉTICA","12800",2018,null,null,null,"20-10   PROCESOS PARA ANTICIPO DE CESANTIAS","10","PROCESOS PARA ANTICIPO DE CESANTIAS","20-10",null,null,"27.04 PROYECTOS DE INVESTIGACIÓN","04 ","27.04 "]
["3526-1","ACTIVO","DEPARTAMENTO DE TRABAJO SOCIAL",3526,null,1,"SI",2010,null,{"$f":"+[1]Hoja2!A114","v":"12413-1"},{"$f":"+[1]Hoja2!B114","v":"ACTIVO"},"DIRECCIÓN DE LA ESCUELA INTERAMERICANA DE BIBLIOTECOLOGÍA","12900",2018,null,null,null,"21-01   PROGRAMAS ACADÉMICOS","01","PROGRAMAS ACADÉMICOS","21-01",null,null,"27.01 PROYECTOS DE EXTENSIÓN","01 ","27.01 "]
["2600-1","ACTIVO","DEPARTAMENTO DE VIGILANCIA Y SEGURIDAD INDUSTRIAL",2600,null,1,"SI",2010,null,{"$f":"+[1]Hoja2!A115","v":"12414-1"},{"$f":"+[1]Hoja2!B115","v":"ACTIVO"},"DIRECCIÓN DE PLANEACIÓN Y DESARROLLO INSTITUCIONAL","11000",2018,null,null,null,"21-02   PROGRAMAS DE ACREDITACIÓN Y AUTOEVALUACIÓN","02","PROGRAMAS DE ACREDITACIÓN Y AUTOEVALUACIÓN","21-02",null,null,"27.02 PROYECTOS DE INNOVACIÓN","02 ","27.02 "]
["3131-1","ACTIVO","DEPARTAMENTO EDUCACION AVANZADA",3131,null,1,"SI",2010,null,{"$f":"+[1]Hoja2!A116","v":"12415-1"},{"$f":"+[1]Hoja2!B116","v":"ACTIVO"},"DIRECCIÓN DE POSGRADOS","10900",2018,null,null,null,"21-03   PROGRAMAS DE BIENESTAR UNIVERSITARIO","03","PROGRAMAS DE BIENESTAR UNIVERSITARIO","21-03",null,null,"27.05 PROYECTOS PRESUPUESTALES","05 ","27.05 "]
["3114-1","ACTIVO","DEPARTAMENTO PRACTICAS CONSULTORIO JURIDICO",3114,null,1,"SI",2010,null,{"$f":"+[1]Hoja2!A117","v":"12416-1"},{"$f":"+[1]Hoja2!B117","v":"ACTIVO"},"DIRECCIÓN DE REGIONALIZACIÓN","10800",2018,null,null,null,"21-04   PROGRAMAS DE CAPACITACIÓN ","04","PROGRAMAS DE CAPACITACIÓN ","21-04",null,null,"28.09 REGISTROS MÉDICOS DE LABORATORIO","09 ","28.09 "]
["2700-1","ACTIVO","DEPARTAMENTO SEGURIDAD SOCIAL",2700,null,1,"SI",2010,null,{"$f":"+[1]Hoja2!A118","v":"12417-1"},{"$f":"+[1]Hoja2!B118","v":"ACTIVO"},"DIRECCIÓN DE RELACIONES INTERNACIONALES","10600",2018,null,null,null,"21-05   PROGRAMAS DE EXTENSION","05","PROGRAMAS DE EXTENSION","21-05",null,null,"28.03 REGISTROS DE ACTIVOS DE CONOCIMIENTO","03 ","28.03 "]
["2710-1","ACTIVO","DEPARTAMENTO SEGURIDAD SOCIAL PREVENCION RO",2710,null,1,"SI",2010,null,{"$f":"+[1]Hoja2!A119","v":"12500-1"},{"$f":"+[1]Hoja2!B119","v":"ACTIVO"},"DIRECCIÓN DEL INSTITUTO DE ESTUDIOS POLÍTICOS","13300",2018,null,null,null,"21-06   PROGRAMAS DE INVESTIGACIÓN","06","PROGRAMAS DE INVESTIGACIÓN","21-06",null,null,"28.08 REGISTROS DE PROPIEDAD INTELECTUAL","08 ","28.08 "]
["3242-1","ACTIVO","DEPARTAMENTO TECNOLOGIA DE ALIMENTOS",3242,null,1,"SI",2010,null,{"$f":"+[1]Hoja2!A120","v":"12501-1"},{"$f":"+[1]Hoja2!B120","v":"ACTIVO"},"DIRECCIÓN DEL INSTITUTO DE ESTUDIOS REGIONALES","13400",2018,null,null,null,"22-01   PROYECTOS DE EXTENSIÓN","01","PROYECTOS DE EXTENSIÓN","22-01",null,null,"28.04 REGISTROS DE AFILIACIÓN","04 ","28.04 "]
["5440-1","ACTIVO","DESARROLLO DE TALENTO HUMANO",5440,null,1,"SI",2010,null,{"$f":"+[1]Hoja2!A121","v":"12502-1"},{"$f":"+[1]Hoja2!B121","v":"ACTIVO"},"DIRECCIÓN DEL INSTITUTO DE FILOSOFÍA","13500",2018,null,null,null,"22-02   PROYECTOS DE INVERSIÓN","02","PROYECTOS DE INVERSIÓN","22-02",null,null,"28.05 REGISTROS DE ATENCIÓN PRIMARIA EN SALUD","05 ","28.05 "]
["5400-1","ACTIVO","DESARROLLO INSTITUCIONAL",5400,null,1,"SI",2010,null,{"$f":"+[1]Hoja2!A122","v":"12600-1"},{"$f":"+[1]Hoja2!B122","v":"ACTIVO"},"DIRECCIÓN DEL INSTITUTO UNIVERSITARIO DE EDUCACIÓN FÍSICA Y DEPORTE","13200",2018,null,null,null,"22-03   PROYECTOS DE INVESTIGACIÓN","03","PROYECTOS DE INVESTIGACIÓN","22-03",null,null,"28.02 REGISTROS DE ACTAS DE GRADO","02 ","28.02 "]
["1040-1","ACTIVO","DIRECCION CONTROL INTERNO",1040,null,1,"SI",2010,null,{"$f":"+[1]Hoja2!A123","v":"12601-1"},{"$f":"+[1]Hoja2!B123","v":"ACTIVO"},"DIVISIÓN ARQUITECTURA DE PROCESOS","11003",2018,null,null,null,"23-01   RESOLUCIONES ADMINISTRATIVAS ","01","RESOLUCIONES ADMINISTRATIVAS ","23-01",null,null,"28.06 REGISTROS DE CONTROL Y PRESCRIPCIÓN DEL EJERCICIO","06 ","28.06 "]
["4000-1","ACTIVO","DIRECCION DE BIENESTAR UNIVERSITARIO",4000,null,1,"SI",2010,null,{"$f":"+[1]Hoja2!A124","v":"12602-1"},{"$f":"+[1]Hoja2!B124","v":"ACTIVO"},"DIVISIÓN DE COMUNICACIÓN INTERNA Y EXTERNA","11201",2018,null,null,null,"23-02   RESOLUCIONES DE COMITÉS","02","RESOLUCIONES DE COMITÉS","23-02",null,null,"28.07 REGISTROS DE GESTIÓN DE RIESGOS","07 ","28.07 "]
["6800-1","ACTIVO","DIRECCION DE GESTION Y RELACIONES INTERNACIONALES",6800,null,1,"SI",2010,null,{"$f":"+[1]Hoja2!A125","v":"12603-1"},{"$f":"+[1]Hoja2!B125","v":"ACTIVO"},"DIVISIÓN DE CONTENIDOS, MEDIOS Y EVENTOS","11202",2018,null,null,null,"23-03   RESOLUCIONES DE CONSEJO ACADÉMICO ","03","RESOLUCIONES DE CONSEJO ACADÉMICO ","23-03",null,null,"28.01 REGISTROS DE ACOMPAÑAMIENTO JURÍDICO","01 ","28.01 "]
["1050-1","ACTIVO","DIRECCION DE POSGRADOS",1050,null,1,"SI",2010,null,{"$f":"+[1]Hoja2!A126","v":"12700-1"},{"$f":"+[1]Hoja2!B126","v":"ACTIVO"},"DIVISIÓN DE EXTENSIÓN CULTURAL","10302",2018,null,null,null,"23-04   RESOLUCIONES DE CONSEJO DE CORPORACION","04","RESOLUCIONES DE CONSEJO DE CORPORACION","23-04",null,null,"29.05 RESOLUCIONES DE VICERRECTORÍA","05 ","29.05 "]
["1060-1","ACTIVO","DIRECCION DE REGIONALIZACION",1060,null,1,"SI",2010,null,{"$f":"+[1]Hoja2!A127","v":"12701-1"},{"$f":"+[1]Hoja2!B127","v":"ACTIVO"},"DIVISIÓN DE GESTIÓN DOCUMENTAL","10501",2018,null,null,null,"23-05   RESOLUCIONES DE CONSEJO DE ESCUELA","05","RESOLUCIONES DE CONSEJO DE ESCUELA","23-05",null,null,"29.01 RESOLUCIONES DE CONSEJO","01 ","29.01 "]
["1062-1","ACTIVO","DIRECCION DE REGIONALIZACION SECCIONAL SUROESTE",1062,null,1,"SI",2010,null,{"$f":"+[1]Hoja2!A128","v":"12702-1"},{"$f":"+[1]Hoja2!B128","v":"ACTIVO"},"DIVISIÓN DE GESTIÓN FINANCIERA","10404",2018,null,null,null,"23-06   RESOLUCIONES DE CONSEJO DE FACULTAD","06","RESOLUCIONES DE CONSEJO DE FACULTAD","23-06",null,null,"29.04 RESOLUCIONES DE SECRETARÍA GENERAL","04 ","29.04 "]
["1067-1","ACTIVO","DIRECCION DE REGIONALIZACION SECCIONAL URABA",1067,null,1,"SI",2010,null,{"$f":"+[1]Hoja2!A129","v":"12703-1"},{"$f":"+[1]Hoja2!B129","v":"ACTIVO"},"DIVISIÓN DE GESTIÓN INFORMÁTICA","11002",2018,null,null,null,"23-07   RESOLUCIONES DE CONSEJO DE INSTITUTO","07","RESOLUCIONES DE CONSEJO DE INSTITUTO","23-07",null,null,"29.06 RESOLUCIONES RECTORALES","06 ","29.06 "]
["3245-1","ACTIVO","DIRECCION ESCUELA DE NUTRICION Y DIETETICA",3245,null,1,"SI",2010,null,{"$f":"+[1]Hoja2!A130","v":"12800-1"},{"$f":"+[1]Hoja2!B130","v":"ACTIVO"},"DIVISIÓN DE INFRAESTRUCTURA FÍSICA","10403",2018,null,null,null,"23-08   RESOLUCIONES DE CONSEJO SUPERIOR UNIVERSITARIO",{"$f":"MID(R130,4,2)","v":"08"},"RESOLUCIONES DE CONSEJO SUPERIOR UNIVERSITARIO","23-08",null,null,"29.03 RESOLUCIONES DE DIRECCIÓN","03 ","29.03 "]
["3540-1","ACTIVO","DIRECCION ESCUELA IDIOMAS",3540,null,1,"SI",2010,null,{"$f":"+[1]Hoja2!A131","v":"12801-1"},{"$f":"+[1]Hoja2!B131","v":"ACTIVO"},"DIVISIÓN DE PLANES Y PROYECTOS","11001",2018,null,null,null,"23-09   RESOLUCIONES DE CONTROL INTERNO","09","RESOLUCIONES DE CONTROL INTERNO","23-09",null,null,"29.02 RESOLUCIONES DE DECANATURA","02 ",{"$f":"MID(X131,1,6)","v":"29.02 "}]
["6300-1","ACTIVO","DIRECCION INSTITUTO FILOSOFIA",6300,null,1,"SI",2010,null,{"$f":"+[1]Hoja2!A132","v":"12802-1"},{"$f":"+[1]Hoja2!B132","v":"ACTIVO"},"DIVISIÓN DE SERVICIOS LOGÍSTICOS","10402",2018,null,null,null,"23-10   RESOLUCIONES DE JUNTAS","10","RESOLUCIONES DE JUNTAS","23-10",null,null,"30.00 SISTEMA DE GESTIÓN DE CALIDAD","00 ","30.00 "]
["3160-1","ACTIVO","DIRECCION INSTITUTO UNIVERSITARIO DE EDUCACION FISICA Y DEPORTE",3160,null,1,"SI",2010,null,{"$f":"+[1]Hoja2!A133","v":"12900-1"},{"$f":"+[1]Hoja2!B133","v":"ACTIVO"},"DIVISIÓN DE TALENTO HUMANO","10401",2018,null,null,null,"23-11   RESOLUCIONES RECTORALES","11","RESOLUCIONES RECTORALES","23-11",null,null,"31.00 SISTEMA DE GESTIÓN INSTITUCIONAL","00 ","31.00 "]
["4300-1","ACTIVO","DIVISION DE DEPORTES DEPARTAMENTO DE DEPORTES",4300,null,1,"SI",2010,null,{"$f":"+[1]Hoja2!A134","v":"12901-1"},{"$f":"+[1]Hoja2!B134","v":"ACTIVO"},"DIVISIÓN PROGRAMA DE SALUD","10405",2018,null,null,null,"24-01   TÍTULOS DE PROPIEDAD","01","TÍTULOS DE PROPIEDAD","24-01",null,null,"32.00 SISTEMA INTEGRADO DE CONSERVACIÓN","00 ","32.00 "]
["6510-1","ACTIVO","DIVISION EXTENSION CULTURAL",6510,null,1,"SI",2010,null,{"$f":"+[1]Hoja2!A135","v":"12902-1"},{"$f":"+[1]Hoja2!B135","v":"ACTIVO"},"DIVISIÓN SISTEMA DE RADIO UNIVERSITARIA","11203",2018,null,null,null,"24-02   TITULOS VALOR","02","TITULOS VALOR","24-02",null,null,"33.01 CERTIFICADOS DE DEPÓSITO A TÉRMINO","01 ","33.01 "]
["4100-1","ACTIVO","DIVISION PRESTACION ECONOMICA Y DE SERVICIOS",4100,null,1,"SI",2010,null,{"$f":"+[1]Hoja2!A136","v":"13000-1"},{"$f":"+[1]Hoja2!B136","v":"ACTIVO"},"ESCUELA DE MEDICINA VETERINARIA","11601",2018,null,null,null,null,null,null,null,null,null,"33.02 PAGARÉ","02 ","33.02 "]
["1024-1","ACTIVO","EMISORA CULTURAL",1024,null,1,"SI",2010,null,{"$f":"+[1]Hoja2!A137","v":"13001-1"},{"$f":"+[1]Hoja2!B137","v":"ACTIVO"},"ESCUELA DE PRODUCCIÓN AGROPECUARIA","11602",2018]
["3301-1","ACTIVO","ESCUELA DE MEDICINA Y VETERINARIA",3301,null,1,"SI",2010,null,{"$f":"+[1]Hoja2!A138","v":"13002-1"},{"$f":"+[1]Hoja2!B138","v":"ACTIVO"},"INSTITUTO DE BIOLOGÍA","11503",2018]
["8888-1","ACTIVO","FONDO ACUMULATIVO UNIVERSITARIO",8888,null,1,"SI",2010,null,{"$f":"+[1]Hoja2!A139","v":"13100-1"},{"$f":"+[1]Hoja2!B139","v":"ACTIVO"},"INSTITUTO DE FÍSICA","11502",2018]
["7000-1","ACTIVO","FONDO DE BIENESTAR UNIVERSITARIO",7000,null,1,"SI",2010,null,{"$f":"+[1]Hoja2!A140","v":"13101-1"},{"$f":"+[1]Hoja2!B140","v":"ACTIVO"},"INSTITUTO DE INVESTIGACIONES MÉDICAS","12401",2018]
["9009-1","ACTIVO","FORMACION DEL TALENTO HUMANO",9009,null,1,"SI",2010,null,{"$f":"+[1]Hoja2!A141","v":"13102-1"},{"$f":"+[1]Hoja2!B141","v":"ACTIVO"},"INSTITUTO DE MATEMÁTICAS","11501",2018]
["5480-1","ACTIVO","GESTION ARQUITECTURA DE PROCESOS",5480,null,1,"SI",2010,null,{"$f":"+[1]Hoja2!A142","v":"13200-1"},{"$f":"+[1]Hoja2!B142","v":"ACTIVO"},"INSTITUTO DE QUÍMICA","11504",2018]
["3513-1","ACTIVO","INSTITUTO DE BIOLOGIA",3513,null,1,"SI",2010,null,{"$f":"+[1]Hoja2!A143","v":"13201-1"},{"$f":"+[1]Hoja2!B143","v":"ACTIVO"},"MUSEO UNIVERSITARIO","10301",2018]
["6200-1","ACTIVO","INSTITUTO DE ESTUDIOS POLITICOS",6200,null,1,"SI",2010,null,{"$f":"+[1]Hoja2!A144","v":"13202-1"},{"$f":"+[1]Hoja2!B144","v":"ACTIVO"},"OFICINA DE AUDITORÍA INSTITUCIONAL","11300",2018]
["3512-1","ACTIVO","INSTITUTO DE FISICA",3512,null,1,"SI",2010,null,{"$f":"+[1]Hoja2!A145","v":"13203-1"},{"$f":"+[1]Hoja2!B145","v":"ACTIVO"},"POSGRADOS Y EDUCACIÓN PERMANENTE FACULTAD DE CIENCIAS ECONÓMICAS","12006",2018]
["3514-1","ACTIVO","INSTITUTO DE QUIMICA",3514,null,1,"SI",2010,null,{"$f":"+[1]Hoja2!A146","v":"13300-1"},{"$f":"+[1]Hoja2!B146","v":"ACTIVO"},"RECTORÍA","10000",2018]
["3620-1","ACTIVO","INSTITUTO NOCTURNO DE BACHILLERATO",3620,null,1,"SI",2010,null,{"$f":"+[1]Hoja2!A147","v":"13400-1"},{"$f":"+[1]Hoja2!B147","v":"ACTIVO"},"SECRETARÍA GENERAL","10500",2018]
["3610-1","ACTIVO","LICEO ANTIOQUENO",3610,null,1,"SI",2010,null,{"$f":"+[1]Hoja2!A148","v":"13500-1"},{"$f":"+[1]Hoja2!B148","v":"ACTIVO"},"SEDE DE INVESTIGACIONES UNIVERSITARIAS","10201",2018]
["6505-1","ACTIVO","MUSEO UNIVERSITARIO E HISTORICO",6505,null,1,"SI",2010,null,{"$f":"+[1]Hoja2!A149","v":"13501-1"},{"$f":"+[1]Hoja2!B149","v":"ACTIVO"},"VICERRECTORÍA DE ADMINISTRATIVA","10400",2018]
["4020-1","ACTIVO","OFICINA DE BIENESTAR ESTUDIANTIL",4020,null,1,"SI",2010,null,{"$f":"+[1]Hoja2!A150","v":"13600-1"},{"$f":"+[1]Hoja2!B150","v":"ACTIVO"},"VICERRECTORÍA DE DOCENCIA","10100",2018]
["5000-1","ACTIVO","OFICINA DE PLANEACION",5000,null,1,"SI",2010,null,{"$f":"+[1]Hoja2!A151","v":"13700-1"},{"$f":"+[1]Hoja2!B151","v":"ACTIVO"},"VICERRECTORÍA DE EXTENSIÓN","10300",2018]
["1030-1","ACTIVO","OFICINA JURIDICA",1030,null,1,"SI",2010,null,{"$f":"+[1]Hoja2!A152","v":"13800-1"},{"$f":"+[1]Hoja2!B152","v":"ACTIVO"},"VICERRECTORÍA DE INVESTIGACIÓN","10200",2018]
["8416-1","ACTIVO","POSGRADO CIENCIAS FARMACEUTICAS Y ALIMENTARIAS",8416,null,1,"SI",2010]
["8722-1","ACTIVO","POSGRADO DE LINGUISTICA Y LITERATURA  DE COMUNICACIONES",8722,null,1,"SI",2010,null,"151 filas"]
["2410-1","ACTIVO","PRESTACIONES",2410,null,1,"SI",2010]
["3030-1","ACTIVO","PROCESOS TECNICOS",3030,null,1,"SI",2010]
["9101-1","ACTIVO","PROGRAMA CORPORACION CIENCIAS BASICAS BIOMEDICAS",9101,null,1,"SI",2010]
["7101-1","ACTIVO","PROGRAMA DE DESARROLLO CAPACITACION DE INVESTIGACIONES BIOLOGIA",7101,null,1,"SI",2010]
["7104-1","ACTIVO","PROGRAMA DE DESARROLLO CAPACITACION DE INVESTIGACIONES INGENIERIA AMBIENTAL",7104,null,1,"SI",2010]
["8516-1","ACTIVO","PROGRAMA DE SERVICIOS Y EXTENSION QUIMICA FARMACEUTICA",8516,null,1,"SI",2010]
["8802-1","ACTIVO","PROGRAMA DECANATURA  FACULTAD DE  CIENCIAS EXACTAS Y NATURALES CENTRO DE EXTENSION",8802,null,1,"SI",2010]
["8822-1","ACTIVO","PROGRAMA DIRECCION  VICERRECTORIA  EXTENSION UNIVERSITARIA",8822,null,1,"SI",2010]
["8700-1","ACTIVO","PROGRAMA DIRECCION DE VICERRECTORIA INVESTIGACIONES - CODI",8700,null,1,"SI",2010]
["8811-1","ACTIVO","PROGRAMA DIRECCION INSTITUTO DE ESTUDIOS POLITICOS INEPO",8811,null,1,"SI",2010]
["8810-1","ACTIVO","PROGRAMA DIRECCION INSTITUTO DE ESTUDIOS REGIONALES INER",8810,null,1,"SI",2010]
["8028-1","ACTIVO","PROGRAMA EDIFICIO SAN IGNACIO VICERRECTORIA DE EXTENSION UNIVERSITA",8028,null,1,"SI",2010]
["8833-1","ACTIVO","PROGRAMA GESTION TECNOLOGICA",8833,null,1,"SI",2010]
["8003-1","ACTIVO","PROGRAMA PARA LA SALUD PSICOFISICA PROSA",8003,null,1,"SI",2010]
["8825-1","ACTIVO","PROGRAMA PLANTA PRODUC MEDICAMENTOS ESENCIALES",8825,null,1,"SI",2010]
["8850-1","ACTIVO","PROGRAMA POSGRADOS EN DERECHO Y CIENCIAS POLITICAS",8850,null,1,"SI",2010]
["8851-1","ACTIVO","PROGRAMA POSGRADOS EN ENFERMERIA",8851,null,1,"SI",2010]
["8854-1","ACTIVO","PROGRAMA POSGRADOS FACULTAD DE CIENCIAS AGRARIAS",8854,null,1,"SI",2010]
["8852-1","ACTIVO","PROGRAMA POSGRADOS FACULTAD DE CIENCIAS SOCIALES Y HUMANAS",8852,null,1,"SI",2010]
["8837-1","ACTIVO","PROGRAMA PSICOLOGIA",8837,null,1,"SI",2010]
["8838-1","ACTIVO","PROGRAMA TRABAJO SOCIAL",8838,null,1,"SI",2010]
["1000-1","ACTIVO","RECTORIA",1000,null,1,"SI",2010]
["2320-1","ACTIVO","SECCION ALMACEN",2320,null,1,"SI",2010]
["2310-1","ACTIVO","SECCION DE COMPRAS",2310,null,1,"SI",2010]
["2520-1","ACTIVO","SECCION DE CONSTRUCCION Y SOSTENIMIENTO",2520,null,1,"SI",2010]
["2110-1","ACTIVO","SECCION DE CONTABILIDAD",2110,null,1,"SI",2010]
["1022-1","ACTIVO","SECCION DE IMPRENTA",1022,null,1,"SI",2010]
["2340-1","ACTIVO","SECCION DE INVENTARIOS",2340,null,1,"SI",2010]
["2120-1","ACTIVO","SECCION DE PRESUPUESTO Y ORDENACION",2120,null,1,"SI",2010]
["4060-1","ACTIVO","SECCION DE SERVICIO MEDICO",4060,null,1,"SI",2010]
["3251-1","ACTIVO","SECCION DE SERVICIOS GENERALES",3251,null,1,"SI",2010]
["4010-1","ACTIVO","SECCION DE SICOORIENTACION",4010,null,1,"SI",2010]
["2130-1","ACTIVO","SECCION DE TESORERIA",2130,null,1,"SI",2010]
["4040-1","ACTIVO","SECCION FARMACIA UNIVERSITARIA",4040,null,1,"SI",2010]
["3140-1","ACTIVO","SECCION PRACTICAS FACULTAD DE EDUCACION",3140,null,1,"SI",2010]
["1010-1","ACTIVO","SECRETARIA GENERAL",1010,null,1,"SI",2010]
["1101-1","ACTIVO","SEDE DE INV UNIVERSITARIA SIU",1101,null,1,"SI",2010]
["8790-1","ACTIVO","SEDE DE INVESTIGACION UNIVERSITARIA SIU",8790,null,1,"SI",2010]
["8795-1","ACTIVO","SEDE DE INVESTIGACION UNIVERSITARIA SIU EXTENSION",8795,null,1,"SI",2010]
["6030-1","ACTIVO","SEDE DE INVESTIGACION UNIVERSITARIA SIU FONDOS GENERALES",6030,null,1,"SI",2010]
["3280-1","ACTIVO","SUBDIRECCION ESCUELA DE BACTERIOLOGIA Y LABORATORIO CLINICO",3280,null,1,"SI",2010]
["2000-1","ACTIVO","UNIDAD DE ASUNTOS DISCIPLINARIOS",2000,null,1,"SI",2010]
["3300-1","ACTIVO","VICEDECANATO DE CIENCIAS AGRARIAS",3300,null,1,"SI",2010]
["3150-1","ACTIVO","VICEDECANATO FACULTAD DE ARTES",3150,null,1,"SI",2010]
["3120-1","ACTIVO","VICEDECANATO FACULTAD DE CIENCIAS ECONOMICAS",3120,null,1,"SI",2010]
["3510-1","ACTIVO","VICEDECANATO FACULTAD DE CIENCIAS EXACTAS Y NATURALES",3510,null,1,"SI",2010]
["3530-1","ACTIVO","VICEDECANATO FACULTAD DE COMUNICACIONES",3530,null,1,"SI",2010]
["3260-1","ACTIVO","VICEDECANATO FACULTAD DE ENFERMERIA",3260,null,1,"SI",2010]
["3250-1","ACTIVO","VICEDECANATO FACULTAD NACIONAL DE SALUD PUBLICA",3250,null,1,"SI",2010]
["3240-1","ACTIVO","VICEDECANATO FACULTAD QUIMICA FARMACEUTICA",3240,null,1,"SI",2010]
["6500-1","ACTIVO","VICERERECTORIA DE EXTENSION UNIVERSITARIA",6500,null,1,"SI",2010]
["3000-1","ACTIVO","VICERRECTORIA DE DOCENCIA",3000,null,1,"SI",2010]
["1020-1","ACTIVO","VICERRECTORIA GENERAL",1020,null,1,"SI",2010]
["6000-1","ACTIVO","VICERRECTORIA INSTITUTOS E INVESTIGACIONES",6000,null,1,"SI",2010]
[]
["207 filas"]